Workbook

Sheet はじめに

Sheet 説明
B1: 会計帳簿システムの使用手順 | M1: ４．補足Q&A
M2: 4-<1>バックアップ処理のイメージは？
B3: １．年度初めの準備 | H3: ２.PCの動きが重くて伝票を削除したいとき。 | M3: →バックアップには、A B C Dの4種類があります。
C4: 前年度から引き継ぐものは、このシステムとしては「会計帳簿.xlsm」だけです。 | H4: 基本的には年度初めの対応とほぼ同じです。
H5: 2-<1> | I5: 最初に、バックアップファイルCを作成します。
B6: 1-<1> | C6: 最初に、バックアップファイルCを作成します（同じフォルダ内）。
H8: 2-<2> | I8: 伝票を削除します。
I9: 1-<2>だけ行います。
B10: 1-<2> | C10: 前年度の伝票を削除します（処理が軽ければ削除しなくてもOK）。 | I10: ここへ削除したい範囲（基本的には期間計算の単位で、例えば2021/4/1~2021/6/30など）を入力して、伝票削除を実行してください。
C12: 前年度の年度開始日を削除開始日へ、年度終了日を削除終了日へ入れるのが基本です。
H14: ３．伝票入力と月次の処理
C15: 削除開始日 | D15: 削除終了日 | H15: 3-<1> | I15: 現金及び預金の動きの全てを伝票処理します。
I16: 伝票を作ってから出納簿に記録するのではなく、
C17: 伝票の削除を実行します。 | I17: 出納簿（兼仕訳帳）に記録してから、伝票を印刷する順番にしています。
I19: 作業方法は、出納簿の解説をお読みください。 | M19: 各月のEXCELマクロファイル(xlsm)を用意するのではなく、バックアップが各月の結果となります。
C20: 間違えて伝票を削除した場合
C21: →補足4-<5>を行ってください。 | H21: 3-<2> | I21: 毎月末（期間末）に、試算表を作成します。
I22: 1)期間計算をクリック（期間別試算表の各期間の上段にボタン） | M22: 4-<2>月次の処理が終わらないと、翌月の伝票を入れられないのか？
B23: 1-<3>-1 | C23: 団体名を入れてください（一度入れればOK)。 | M23: →伝票を入れるのは、いつでもOKです。但し、伝票Noは順番を守ってください。
C24: A自治会_特別会計 | I24: 2)細分類をハンド記入
B25: 1-<3>-2 | C25: 年度初めの設定をします。 | I25: 3)出納簿の印刷（ 当該の期間を入力、科目は空欄にする。PDFで確認後印刷。） | M25: 月次処理は全データから、当該期間のデータを拾い上げるため、他の期間のデータがあっても影響ありません。
D26: 2021 | E26: 年度
B27: 1-<3>-3 | C27: 期間別試算表の期間設定を行います。 | I27: 4）実績のある科目について、元帳を印刷
D28: 開始日 | E28: 終了日 | I28: 5)現金と預金の残高照合 | M28: 4-<3>PCが高性能で、何も重くならないのに、過去の伝票を削除する必要があるのか？
C29: 前年度末 | E29: 2021-03-31
C30: 期間計算1 | D30: 2021-04-01 | E30: 2022-03-31 | H30: 3-<3> | I30: バックアップBを作成します。（期間別試算表の各期間の上段にボタン） | M30: →サクサク動くのなら、年度を超えても伝票削除は不要です。但し年度初めは、1-<3>は必ず行ってください。
C31: 期間計算2
C32: 期間計算3
C33: 期間計算4 | M33: 4-<4>バックアップファイルなどファイルを開いたとき、「コンテンツの有効化」、を問われた場合は、そこをクリックして有効化してから、一度、保存してください。再度、開くときは、この問いは出てこないはずです。
C34: 期間計算5
C35: 期間計算6 | I35: 以上です。
C36: 期間計算7
C37: 期間計算8 | M37: 4-<5>間違えて伝票削除を実行した場合(削除をし過ぎた場合）、復元の仕方は？
C38: 期間計算9
C39: 期間計算10 | M39: →慎重に行う必要があります。
C40: 期間計算11 | M40: 1) 同じフォルダの中に、バックアップCファイル「XXXXXXC_会計帳簿.xlsm」が作られているはずです。これを開いて、間違えて削除した伝票が残っていることを確認してください。
C41: 期間計算12
C43: 通期期間 | D43: =MIN(D30:D41) -> 2021-04-01 | E43: =MAX(E30:E41) -> 2022-03-31 | M43: 2) 今、「会計帳簿.xlsm」と「XXXXXXC_会計帳簿.xlsm」の２つのファイルが開かれているはずです。「会計帳簿.xlsm」を閉じてください。
B45: 1-<3>-4 | C45: 前年度末の資産負債の残高を登録します。
C46: =科目細分類[[#Headers],[現金]] -> 現金 | E46: 円 | M46: 3)「XXXXXXC_会計帳簿.xlsm」ファイルの「説明」シートのこの位置から、以下のバックアップDを実行ください。
C47: =科目細分類[[#Headers],[普通預金(準備金移動前）]] -> 普通預金(準備金移動前） | E47: 円
C48: =科目細分類[[#Headers],[A準備金]] -> A準備金 | D48: 6300000 | E48: 円
C49: =科目細分類[[#Headers],[B準備金]] -> B準備金 | E49: 円
C50: =科目細分類[[#Headers],[C準備金]] -> C準備金 | E50: 円
C51: =科目細分類[[#Headers],[固定資産]] -> 固定資産 | D51: 61300000 | E51: 円 | M51: 4)「XXXXXXC_会計帳簿.xlsm」を閉じてください。
C52: =科目細分類[[#Headers],[その他資産]] -> その他資産 | E52: 円 | M52: 5)「会計帳簿.xlsm」を削除してください。
C53: =科目細分類[[#Headers],[銀行借入金]] -> 銀行借入金 | E53: 円 | M53: 6)「XXXXXXC_会計帳簿.xlsm」の名前を「会計帳簿.xlsm」へ変更してください。
C54: =科目細分類[[#Headers],[その他負債]] -> その他負債 | E54: 円
M55: 7)1-<1>または2-<1>を再度行って下さい。
M57: 4-<6>使い始めた後で、科目名や細分類名を変更することが出来ますか？
B59: 1-<3>-5 | C59: バックアップファイルAを作成します。 | M59: →できます。科目細分類表」シートに手順があります。
B62: 年度初めの準備は以上です。

Sheet 伝票作成
B1: =IF(F16 <> K16,"記入にエラーがあります。訂正してからPDF作成してください。","") ->  | AF1: 1
B2: 伝票入力は出納簿で行います。ここでは伝票Noだけを入力します。
D3: =説明!C24 -> A自治会_特別会計 | G3: 特別会計伝票
B4: =説明!D26 -> 2021 | D4: 年度 | J4: 会長印 | K4: 会計印
B5: 伝票No | E5: 1
E6: =IF(AND(E7>=start_date,E7<=end_date),"","この伝票Noは古い年度で使われたままです！") -> 
B7: 計上日 | E7: =INDEX(debit_allitems,MATCH(slip_no,debit_slip_no,0),1) -> 2021-10-05
B9: 借 方 | G9: 貸 方
B10: 行番 | C10: No番号 | D10: 科目G | E10: 科 目 | F10: 金額(円) | G10: 行番 | H10: No番号 | I10: 科目G | J10: 科 目 | K10: 金額(円)
B11: 1 | C11: =slip_no&B11 -> 11 | D11: =IFERROR(INDEX(debit_all_items,MATCH(C11,debit_chain,0),1),"") -> 特会資産 | E11: =IFERROR(INDEX(debit_all_items,MATCH(C11,debit_chain,0),2),"") -> 普通預金(準備金移動前） | F11: =IFERROR(INDEX(debit_all_items,MATCH(C11,debit_chain,0),4),"") -> 27 | G11: 1 | H11: =slip_no&G11 -> 11 | I11: =IFERROR(INDEX(credit_all_items,MATCH(H11,debit_chain,0),1),"") -> 特会収入 | J11: =IFERROR(INDEX(credit_all_items,MATCH(H11,debit_chain,0),2),"") -> その他収入 | K11: =IFERROR(INDEX(credit_all_items,MATCH(H11,debit_chain,0),4),"") -> 27
B12: 2 | C12: =slip_no&B12 -> 12 | D12: =IFERROR(INDEX(debit_all_items,MATCH(C12,debit_chain,0),1),"") -> 特会資産 | E12: =IFERROR(INDEX(debit_all_items,MATCH(C12,debit_chain,0),2),"") -> A準備金 | F12: =IFERROR(INDEX(debit_all_items,MATCH(C12,debit_chain,0),4),"") -> 27 | G12: 2 | H12: =slip_no&G12 -> 12 | I12: =IFERROR(INDEX(credit_all_items,MATCH(H12,debit_chain,0),1),"") -> 特会資産 | J12: =IFERROR(INDEX(credit_all_items,MATCH(H12,debit_chain,0),2),"") -> 普通預金(準備金移動前） | K12: =IFERROR(INDEX(credit_all_items,MATCH(H12,debit_chain,0),4),"") -> 27
B13: 3 | C13: =slip_no&B13 -> 13 | D13: =IFERROR(INDEX(debit_all_items,MATCH(C13,debit_chain,0),1),"") ->  | E13: =IFERROR(INDEX(debit_all_items,MATCH(C13,debit_chain,0),2),"") ->  | F13: =IFERROR(INDEX(debit_all_items,MATCH(C13,debit_chain,0),4),"") ->  | G13: 3 | H13: =slip_no&G13 -> 13 | I13: =IFERROR(INDEX(credit_all_items,MATCH(H13,debit_chain,0),1),"") ->  | J13: =IFERROR(INDEX(credit_all_items,MATCH(H13,debit_chain,0),2),"") ->  | K13: =IFERROR(INDEX(credit_all_items,MATCH(H13,debit_chain,0),4),"") -> 
B14: 4 | C14: =slip_no&B14 -> 14 | D14: =IFERROR(INDEX(debit_all_items,MATCH(C14,debit_chain,0),1),"") ->  | E14: =IFERROR(INDEX(debit_all_items,MATCH(C14,debit_chain,0),2),"") ->  | F14: =IFERROR(INDEX(debit_all_items,MATCH(C14,debit_chain,0),4),"") ->  | G14: 4 | H14: =slip_no&G14 -> 14 | I14: =IFERROR(INDEX(credit_all_items,MATCH(H14,debit_chain,0),1),"") ->  | J14: =IFERROR(INDEX(credit_all_items,MATCH(H14,debit_chain,0),2),"") ->  | K14: =IFERROR(INDEX(credit_all_items,MATCH(H14,debit_chain,0),4),"") -> 
B15: 5 | C15: =slip_no&B15 -> 15 | D15: =IFERROR(INDEX(debit_all_items,MATCH(C15,debit_chain,0),1),"") ->  | E15: =IFERROR(INDEX(debit_all_items,MATCH(C15,debit_chain,0),2),"") ->  | F15: =IFERROR(INDEX(debit_all_items,MATCH(C15,debit_chain,0),4),"") ->  | G15: 5 | H15: =slip_no&G15 -> 15 | I15: =IFERROR(INDEX(credit_all_items,MATCH(H15,debit_chain,0),1),"") ->  | J15: =IFERROR(INDEX(credit_all_items,MATCH(H15,debit_chain,0),2),"") ->  | K15: =IFERROR(INDEX(credit_all_items,MATCH(H15,debit_chain,0),4),"") -> 
E16: 計 | F16: =SUM(F11:F15) -> 54 | J16: 計 | K16: =SUM(K11:K15) -> 54
D18: 借方細分類 | I18: 貸方細分類
B19: 1 | C19: =C11 -> 11 | D19: =IFERROR(INDEX(debit_all_items,MATCH(C19,debit_chain,0),3),"") -> - | G19: 1 | H19: =H11 -> 11 | I19: =IFERROR(INDEX(credit_all_items,MATCH(H19,debit_chain,0),3),"") -> 普通預金利子
B20: 2 | C20: =C12 -> 12 | D20: =IFERROR(INDEX(debit_all_items,MATCH(C20,debit_chain,0),3),"") -> - | G20: 2 | H20: =H12 -> 12 | I20: =IFERROR(INDEX(credit_all_items,MATCH(H20,debit_chain,0),3),"") -> -
B21: 3 | C21: =C13 -> 13 | D21: =IFERROR(INDEX(debit_all_items,MATCH(C21,debit_chain,0),3),"") ->  | G21: 3 | H21: =H13 -> 13 | I21: =IFERROR(INDEX(credit_all_items,MATCH(H21,debit_chain,0),3),"") -> 
B22: 4 | C22: =C14 -> 14 | D22: =IFERROR(INDEX(debit_all_items,MATCH(C22,debit_chain,0),3),"") ->  | G22: 4 | H22: =H14 -> 14 | I22: =IFERROR(INDEX(credit_all_items,MATCH(H22,debit_chain,0),3),"") -> 
B23: 5 | C23: =C15 -> 15 | D23: =IFERROR(INDEX(debit_all_items,MATCH(C23,debit_chain,0),3),"") ->  | G23: 5 | H23: =H15 -> 15 | I23: =IFERROR(INDEX(credit_all_items,MATCH(H23,debit_chain,0),3),"") -> 
B25: 摘要
B26: 1 | C26: =slip_no&B26 -> 11 | D26: =IFERROR(INDEX(credit_all_items,MATCH(C26,debit_chain,0),5),"") -> 9/13 3/15~9/12までの預金利息 税引き後利息 0041647、特別会計へ算入 | J26: =IFERROR(INDEX(credit_all_items,MATCH(C26,debit_chain,0),6),"") -> 0
B27: 2 | C27: =slip_no&B27 -> 12 | D27: =IFERROR(INDEX(credit_all_items,MATCH(C27,debit_chain,0),5),"") -> 一旦、A準備金で受け入れ | J27: =IFERROR(INDEX(credit_all_items,MATCH(C27,debit_chain,0),6),"") -> 0
B28: 3 | C28: =slip_no&B28 -> 13 | D28: =IFERROR(INDEX(credit_all_items,MATCH(C28,debit_chain,0),5),"") ->  | J28: =IFERROR(INDEX(credit_all_items,MATCH(C28,debit_chain,0),6),"") -> 
B29: 4 | C29: =slip_no&B29 -> 14 | D29: =IFERROR(INDEX(credit_all_items,MATCH(C29,debit_chain,0),5),"") ->  | J29: =IFERROR(INDEX(credit_all_items,MATCH(C29,debit_chain,0),6),"") -> 
B30: 5 | C30: =slip_no&B30 -> 15 | D30: =IFERROR(INDEX(credit_all_items,MATCH(C30,debit_chain,0),5),"") ->  | J30: =IFERROR(INDEX(credit_all_items,MATCH(C30,debit_chain,0),6),"") -> 
B32: 説明/備考

Sheet 出納簿
N1: 解説↗ | Q1: コントロールデータ | AE1: 合計金額表示方法判定フラグ | AF1: 2 | AH1: 借方対象期間合計金額 | AI1: 借方対象科目合計金額 | AJ1: 貸方対象期間合計金額 | AK1: 貸方対象科目合計金額 | AL1: 伝票削除フラグ
A2: =説明!C24 -> A自治会_特別会計 | E2: 出納簿兼仕訳帳 | T2: 選択2 選択3-1 | X2: 選択3-2 選択5 | AA2: 選択4 | AC2: 選択1 | AE2: 合計判定フラグに対応する合計額の結果 | AF2: 伝票データ入力 | AG2: 1 | AH2: 0 | AI2: 0 | AJ2: 0 | AK2: 0 | AM2: 削除開始日 | AN2: 削除終了日 | AO2: =説明!C24 -> A自治会_特別会計 | AS2: 出納簿 兼 総勘定元帳 | AU2: =B3 -> 2021 | AV2: 年度 | BB2: =TODAY() -> 2022-03-10
B3: =説明!D26 -> 2021 | C3: 年度 | E3: 期間 | F3: 2021-04-01 | H3: 2022-03-31 | Q3: 借方チェーン番号 | R3: 貸方チェーン番号 | S3: 印刷行の指定 A+B+C+D | T3: 対象期間全科目 A | U3: 借方と貸方が同じ B | V3: 科目が借方科目に一致、但し科目が空欄の場合はN C | W3: 科目が貸方科目に一致,但し科目が空欄の場合はN D | X3: 対象科目が借方または貸方に一致 | Y3: 対象期間対象科目借方金額合計 | Z3: 対象期間対象科目貸方金額合計 | AA3: a 処理日が範囲内はA、範囲外はB、未入力はC | AB3: b 伝票Noが最大の行に1マークが入る。 | AC3: aがAかつbが1の場合はY、そうでない場合でaがCならY、違う場合N | AD3: 借方科目または貸方科目が空欄 | AF3: 対象期間全科目 | AG3: 2 | AH3: =SUMIF(print_judge_date,"=Y",debit_sum_2) -> 16520054 | AI3: 0 | AJ3: =SUMIF(print_judge_date,"=Y",credit_sum_2) -> 16520054 | AK3: 0 | AM3: =IF(説明!C16="","",説明!C16) ->  | AN3: =IF(説明!D16="","",説明!D16) ->  | AQ3: 対象期間 | AS3: =IF(from_date_2<>"",from_date_2,"") -> 2021-04-01 | AT3: 〜 | AU3: =IF(to_date_2<>"",to_date_2,"") -> 2022-03-31
D4: 科目G | F4: =IFERROR(VLOOKUP(H4,g_kamoku,2,FALSE),"") ->  | G4: 科目 | M4: 借方-貸方= | N4: =G7-M7 -> 0 | O4: 円 | AF4: 対象期間対象科目 | AG4: 3 | AH4: 0 | AI4: =SUMIFS(debit_sum_2,print_judge_date,"Y",debit_select,"Y") -> 0 | AJ4: 0 | AK4: =SUMIFS(credit_sum_2,print_judge_date,"Y",credit_select,"Y") -> 0 | AR4: 科目G | AS4: =list_kamoku_2 ->  | AT4: 科目 | AU4: =H4 -> 0 | AZ4: 借方-貸方= | BA4: =N4 -> 0 | BB4: 円
A5: 使用可 | D5: 借方 | I5: 貸方 | AF5: 全期間全科目 | AG5: 4 | AH5: =SUMIF(process_date,"=Y",debit_sum_2) -> 0 | AI5: 0 | AJ5: =SUMIF(process_date,"=Y",credit_sum_2) -> 0 | AK5: 0 | AQ5: 借 方 | AV5: 貸 方
F6: 期間合計金額 | G6: =IFERROR(VLOOKUP(total_judge,sum_judge_table,2,FALSE),"") -> 16520054 | H6: 円 | K6: 期間合計金額 | M6: =IFERROR(VLOOKUP(total_judge,sum_judge_table,4,FALSE),"") -> 16520054 | N6: 円 | AF6: 全期間対象科目 | AG6: 5 | AH6: =SUMIF(process_date,"=Y",debit_sum_2) -> 0 | AI6: =SUMIF(debit_select,"=Y",debit_sum_2) -> 0 | AJ6: =SUMIF(process_date,"=Y",credit_sum_2) -> 0 | AK6: =SUMIF(credit_select,"=Y",credit_sum_2) -> 0 | AS6: 期間合計金額 | AT6: =G6 -> 16520054 | AU6: 円 | AY6: 期間合計金額 | AZ6: =M6 -> 16520054 | BA6: 円
F7: 科目合計金額 | G7: =IFERROR(VLOOKUP(total_judge,sum_judge_table,3,FALSE),"") -> 0 | H7: 円 | K7: 科目合計金額 | M7: =IFERROR(VLOOKUP(total_judge,sum_judge_table,5,FALSE),"") -> 0 | N7: 円 | AG7: 6 | AS7: 科目合計金額 | AT7: =G7 -> 0 | AU7: 円 | AY7: 科目合計金額 | AZ7: =M7 -> 0 | BA7: 円 | BC7: （複）複式 (連）連記式
B8: 計上日 | C8: 伝No | D8: 行No | E8: 科目G | F8: 科目名（選択） | G8: 細分類（選択） | H8: 金額(円) | I8: 伝No | J8: 行No | K8: 科目G | L8: 科目名（選択） | M8: 細分類（選択） | N8: 金額(円) | O8: 摘要 | P8: 補足 | Q8: & | R8: & | AO8: 計上日 | AP8: 伝票No. | AQ8: 行番 | AR8: 科目G | AS8: 科目名 | AT8: 細分類 | AU8: 金額 | AV8: 伝票No. | AW8: 行番 | AX8: 科目G | AY8: 科目名 | AZ8: 細分類 | BA8: 金額 | BB8: 摘要 | BC8: 補足
A9: =IF(AND(_xlfn.ISFORMULA(K9),_xlfn.ISFORMULA(E9),_xlfn.ISFORMULA(I9:J9),_xlfn.ISFORMULA(Q9:AD9),_xlfn.ISFORMULA(AL9),_xlfn.ISFORMULA(AO9:BC9)),"可","不可") -> 可 | B9: 2021-10-05 | C9: 1 | D9: 1 | E9: =IFERROR(VLOOKUP(F9,g_kamoku,2,FALSE),"") -> 特会資産 | F9: 普通預金(準備金移動前） | G9: - | H9: 27 | I9: =C9 -> 1 | J9: =D9 -> 1 | K9: =IFERROR(VLOOKUP(L9,g_kamoku,2,FALSE),"") -> 特会収入 | L9: その他収入 | M9: 普通預金利子 | N9: 27 | O9: 9/13 3/15~9/12までの預金利息 税引き後利息 0041647、特別会計へ算入 | Q9: =C9&D9 -> 11 | R9: =I9&J9 -> 11 | S9: =T9&U9&V9&W9 -> YNNN | T9: =IF(AND(from_date_2<=B9,to_date_2>=B9),"Y","N") -> Y | U9: =IF(F9=L9,"Y","N") -> N | V9: =IF(AND(kamoku_name<>"",F9=kamoku_name),"Y","N") -> N | W9: =IF(AND(kamoku_name<>"",L9=kamoku_name),"Y","N") -> N | X9: =IF(OR(V9="Y",W9="Y"),"Y","N") -> N | Y9: =IF(AND(X9="Y",V9="Y"),"Y","N") -> N | Z9: =IF(AND(X9="Y",W9="Y"),"Y","N") -> N | AA9: =IF(AND(B9>=start_date,B9<=end_date),"A",IF(B9="","C","B")) -> A | AB9: =IFERROR(MATCH(MAX(slip),C9,0),"") ->  | AC9: =IF(AND(AA9="A",AB9<>""),"Y",IF(AA9="C","Y","N")) -> N | AD9: =IF(OR(F9="",L9=""),"Y","N") -> N | AL9: =IF(OR(delete_start_date="",delete_end_date=""),"",IF(AND(B9>=delete_start_date,B9<=delete_end_date),"1","")) ->  | AO9: =B9 -> 2021-10-05 | AP9: =C9 -> 1 | AQ9: =D9 -> 1 | AR9: =E9 -> 特会資産 | AS9: =F9 -> 普通預金(準備金移動前） | AT9: =G9 -> - | AU9: =H9 -> 27 | AV9: =I9 -> 1 | AW9: =J9 -> 1 | AX9: =K9 -> 特会収入 | AY9: =L9 -> その他収入 | AZ9: =M9 -> 普通預金利子 | BA9: =N9 -> 27 | BB9: =O9 -> 9/13 3/15~9/12までの預金利息 税引き後利息 0041647、特別会計へ算入 | BC9: =P9 -> 0
A10: 可 | B10: 2021-10-05 | C10: 1 | D10: 2 | E10: 特会資産 | F10: A準備金 | G10: - | H10: 27 | I10: 1 | J10: 2 | K10: 特会資産 | L10: 普通預金(準備金移動前） | M10: - | N10: 27 | O10: 一旦、A準備金で受け入れ | Q10: =C10&D10 -> 12 | R10: =I10&J10 -> 12 | S10: =T10&U10&V10&W10 -> YNNN | T10: =IF(AND(from_date_2<=B10,to_date_2>=B10),"Y","N") -> Y | U10: =IF(F10=L10,"Y","N") -> N | V10: =IF(AND(kamoku_name<>"",F10=kamoku_name),"Y","N") -> N | W10: =IF(AND(kamoku_name<>"",L10=kamoku_name),"Y","N") -> N | X10: =IF(OR(V10="Y",W10="Y"),"Y","N") -> N | Y10: =IF(AND(X10="Y",V10="Y"),"Y","N") -> N | Z10: =IF(AND(X10="Y",W10="Y"),"Y","N") -> N | AA10: =IF(AND(B10>=start_date,B10<=end_date),"A",IF(B10="","C","B")) -> A | AB10: =IFERROR(MATCH(MAX(slip),C10,0),"") ->  | AC10: =IF(AND(AA10="A",AB10<>""),"Y",IF(AA10="C","Y","N")) -> N | AD10: =IF(OR(F10="",L10=""),"Y","N") -> N | AO10: =B10 -> 2021-10-05 | AP10: =C10 -> 1 | AQ10: =D10 -> 2 | AR10: =E10 -> 特会資産 | AS10: =F10 -> A準備金 | AT10: =G10 -> - | AU10: =H10 -> 27 | AV10: =I10 -> 1 | AW10: =J10 -> 2 | AX10: =K10 -> 特会資産 | AY10: =L10 -> 普通預金(準備金移動前） | AZ10: =M10 -> - | BA10: =N10 -> 27 | BB10: =O10 -> 一旦、A準備金で受け入れ | BC10: =P10 -> 0
A11: 可 | B11: 2021-11-01 | C11: 2 | D11: 1 | E11: 特会費用 | F11: 減価償却費 | G11: 建物 | H11: 560000 | I11: 2 | J11: 1 | K11: 特会資産 | L11: 固定資産 | M11: 建物 | N11: 560000 | O11: 40,000,000円 法定47年 均等償却 月70,000円 4~11月 8カ月*70,000=560,000円 | Q11: =C11&D11 -> 21 | R11: =I11&J11 -> 21 | S11: =T11&U11&V11&W11 -> YNNN | T11: =IF(AND(from_date_2<=B11,to_date_2>=B11),"Y","N") -> Y | U11: =IF(F11=L11,"Y","N") -> N | V11: =IF(AND(kamoku_name<>"",F11=kamoku_name),"Y","N") -> N | W11: =IF(AND(kamoku_name<>"",L11=kamoku_name),"Y","N") -> N | X11: =IF(OR(V11="Y",W11="Y"),"Y","N") -> N | Y11: =IF(AND(X11="Y",V11="Y"),"Y","N") -> N | Z11: =IF(AND(X11="Y",W11="Y"),"Y","N") -> N | AA11: =IF(AND(B11>=start_date,B11<=end_date),"A",IF(B11="","C","B")) -> A | AB11: =IFERROR(MATCH(MAX(slip),C11,0),"") ->  | AC11: =IF(AND(AA11="A",AB11<>""),"Y",IF(AA11="C","Y","N")) -> N | AD11: =IF(OR(F11="",L11=""),"Y","N") -> N | AO11: =B11 -> 2021-11-01 | AP11: =C11 -> 2 | AQ11: =D11 -> 1 | AR11: =E11 -> 特会費用 | AS11: =F11 -> 減価償却費 | AT11: =G11 -> 建物 | AU11: =H11 -> 560000 | AV11: =I11 -> 2 | AW11: =J11 -> 1 | AX11: =K11 -> 特会資産 | AY11: =L11 -> 固定資産 | AZ11: =M11 -> 建物 | BA11: =N11 -> 560000 | BB11: =O11 -> 40,000,000円 法定47年 均等償却 月70,000円 4~11月 8カ月*70,000=560,000円 | BC11: =P11 -> 0
A12: 可 | B12: 2021-11-30 | C12: 3 | D12: 1 | E12: 特会資産 | F12: 普通預金(準備金移動前） | G12: - | H12: 2000000 | I12: 3 | J12: 1 | K12: 特会収入 | L12: 自治会一般会計 | M12: - | N12: 2000000 | O12: 2020年度一般会計剰余金の特別会計への繰入れ | Q12: =C12&D12 -> 31 | R12: =I12&J12 -> 31 | S12: =T12&U12&V12&W12 -> YNNN | T12: =IF(AND(from_date_2<=B12,to_date_2>=B12),"Y","N") -> Y | U12: =IF(F12=L12,"Y","N") -> N | V12: =IF(AND(kamoku_name<>"",F12=kamoku_name),"Y","N") -> N | W12: =IF(AND(kamoku_name<>"",L12=kamoku_name),"Y","N") -> N | X12: =IF(OR(V12="Y",W12="Y"),"Y","N") -> N | Y12: =IF(AND(X12="Y",V12="Y"),"Y","N") -> N | Z12: =IF(AND(X12="Y",W12="Y"),"Y","N") -> N | AA12: =IF(AND(B12>=start_date,B12<=end_date),"A",IF(B12="","C","B")) -> A | AB12: =IFERROR(MATCH(MAX(slip),C12,0),"") ->  | AC12: =IF(AND(AA12="A",AB12<>""),"Y",IF(AA12="C","Y","N")) -> N | AD12: =IF(OR(F12="",L12=""),"Y","N") -> N | AO12: =B12 -> 2021-11-30 | AP12: =C12 -> 3 | AQ12: =D12 -> 1 | AR12: =E12 -> 特会資産 | AS12: =F12 -> 普通預金(準備金移動前） | AT12: =G12 -> - | AU12: =H12 -> 2000000 | AV12: =I12 -> 3 | AW12: =J12 -> 1 | AX12: =K12 -> 特会収入 | AY12: =L12 -> 自治会一般会計 | AZ12: =M12 -> - | BA12: =N12 -> 2000000 | BB12: =O12 -> 2020年度一般会計剰余金の特別会計への繰入れ | BC12: =P12 -> 0
A13: 可 | B13: 2021-11-30 | C13: 3 | D13: 2 | E13: 特会資産 | F13: A準備金 | G13: - | H13: 2000000 | I13: 3 | J13: 2 | K13: 特会資産 | L13: 普通預金(準備金移動前） | M13: - | N13: 2000000 | O13: 一旦、公民館補修工事等準備金で受け入れ | Q13: =C13&D13 -> 32 | R13: =I13&J13 -> 32 | S13: =T13&U13&V13&W13 -> YNNN | T13: =IF(AND(from_date_2<=B13,to_date_2>=B13),"Y","N") -> Y | U13: =IF(F13=L13,"Y","N") -> N | V13: =IF(AND(kamoku_name<>"",F13=kamoku_name),"Y","N") -> N | W13: =IF(AND(kamoku_name<>"",L13=kamoku_name),"Y","N") -> N | X13: =IF(OR(V13="Y",W13="Y"),"Y","N") -> N | Y13: =IF(AND(X13="Y",V13="Y"),"Y","N") -> N | Z13: =IF(AND(X13="Y",W13="Y"),"Y","N") -> N | AA13: =IF(AND(B13>=start_date,B13<=end_date),"A",IF(B13="","C","B")) -> A | AB13: =IFERROR(MATCH(MAX(slip),C13,0),"") ->  | AC13: =IF(AND(AA13="A",AB13<>""),"Y",IF(AA13="C","Y","N")) -> N | AD13: =IF(OR(F13="",L13=""),"Y","N") -> N | AO13: =B13 -> 2021-11-30 | AP13: =C13 -> 3 | AQ13: =D13 -> 2 | AR13: =E13 -> 特会資産 | AS13: =F13 -> A準備金 | AT13: =G13 -> - | AU13: =H13 -> 2000000 | AV13: =I13 -> 3 | AW13: =J13 -> 2 | AX13: =K13 -> 特会資産 | AY13: =L13 -> 普通預金(準備金移動前） | AZ13: =M13 -> - | BA13: =N13 -> 2000000 | BB13: =O13 -> 一旦、公民館補修工事等準備金で受け入れ | BC13: =P13 -> 0
A14: 可 | B14: 2021-12-01 | C14: 4 | D14: 1 | E14: 特会資産 | F14: B準備金 | G14: - | H14: 7200000 | I14: 4 | J14: 1 | L14: 公民館補修準備金 | M14: - | N14: 7200000 | O14: 公民館建築準備金へ組替え 2021年度末の初期設定額 | Q14: =C14&D14 -> 41 | R14: =I14&J14 -> 41 | S14: =T14&U14&V14&W14 -> YNNN | T14: =IF(AND(from_date_2<=B14,to_date_2>=B14),"Y","N") -> Y | U14: =IF(F14=L14,"Y","N") -> N | V14: =IF(AND(kamoku_name<>"",F14=kamoku_name),"Y","N") -> N | W14: =IF(AND(kamoku_name<>"",L14=kamoku_name),"Y","N") -> N | X14: =IF(OR(V14="Y",W14="Y"),"Y","N") -> N | Y14: =IF(AND(X14="Y",V14="Y"),"Y","N") -> N | Z14: =IF(AND(X14="Y",W14="Y"),"Y","N") -> N | AA14: =IF(AND(B14>=start_date,B14<=end_date),"A",IF(B14="","C","B")) -> A | AB14: =IFERROR(MATCH(MAX(slip),C14,0),"") ->  | AC14: =IF(AND(AA14="A",AB14<>""),"Y",IF(AA14="C","Y","N")) -> N | AD14: =IF(OR(F14="",L14=""),"Y","N") -> N | AO14: =B14 -> 2021-12-01 | AP14: =C14 -> 4 | AQ14: =D14 -> 1 | AR14: =E14 -> 特会資産 | AS14: =F14 -> B準備金 | AT14: =G14 -> - | AU14: =H14 -> 7200000 | AV14: =I14 -> 4 | AW14: =J14 -> 1 | AX14: =K14 ->  | AY14: =L14 -> 公民館補修準備金 | AZ14: =M14 -> - | BA14: =N14 -> 7200000 | BB14: =O14 -> 公民館建築準備金へ組替え 2021年度末の初期設定額 | BC14: =P14 -> 0
A15: 可 | B15: 2021-12-31 | C15: 5 | D15: 1 | E15: 特会費用 | F15: 修繕費 | G15: 建物 | H15: 600000 | I15: 5 | J15: 1 | L15: 公民館補修準備金 | M15: - | N15: 600000 | O15: （見込み） 公民館屋根天井補修工事 | Q15: =C15&D15 -> 51 | R15: =I15&J15 -> 51 | S15: =T15&U15&V15&W15 -> YNNN | T15: =IF(AND(from_date_2<=B15,to_date_2>=B15),"Y","N") -> Y | U15: =IF(F15=L15,"Y","N") -> N | V15: =IF(AND(kamoku_name<>"",F15=kamoku_name),"Y","N") -> N | W15: =IF(AND(kamoku_name<>"",L15=kamoku_name),"Y","N") -> N | X15: =IF(OR(V15="Y",W15="Y"),"Y","N") -> N | Y15: =IF(AND(X15="Y",V15="Y"),"Y","N") -> N | Z15: =IF(AND(X15="Y",W15="Y"),"Y","N") -> N | AA15: =IF(AND(B15>=start_date,B15<=end_date),"A",IF(B15="","C","B")) -> A | AB15: =IFERROR(MATCH(MAX(slip),C15,0),"") ->  | AC15: =IF(AND(AA15="A",AB15<>""),"Y",IF(AA15="C","Y","N")) -> N | AD15: =IF(OR(F15="",L15=""),"Y","N") -> N | AO15: =B15 -> 2021-12-31 | AP15: =C15 -> 5 | AQ15: =D15 -> 1 | AR15: =E15 -> 特会費用 | AS15: =F15 -> 修繕費 | AT15: =G15 -> 建物 | AU15: =H15 -> 600000 | AV15: =I15 -> 5 | AW15: =J15 -> 1 | AX15: =K15 ->  | AY15: =L15 -> 公民館補修準備金 | AZ15: =M15 -> - | BA15: =N15 -> 600000 | BB15: =O15 -> （見込み） 公民館屋根天井補修工事 | BC15: =P15 -> 0
A16: 可 | B16: 2022-02-28 | C16: 6 | D16: 1 | E16: 特会費用 | F16: その他費用1 | G16: AAA負担金 | H16: 600000 | I16: 6 | J16: 1 | L16: 生活支援等準備金 | M16: - | N16: 600000 | O16: (見込み）AAA負担金 | Q16: =C16&D16 -> 61 | R16: =I16&J16 -> 61 | S16: =T16&U16&V16&W16 -> YNNN | T16: =IF(AND(from_date_2<=B16,to_date_2>=B16),"Y","N") -> Y | U16: =IF(F16=L16,"Y","N") -> N | V16: =IF(AND(kamoku_name<>"",F16=kamoku_name),"Y","N") -> N | W16: =IF(AND(kamoku_name<>"",L16=kamoku_name),"Y","N") -> N | X16: =IF(OR(V16="Y",W16="Y"),"Y","N") -> N | Y16: =IF(AND(X16="Y",V16="Y"),"Y","N") -> N | Z16: =IF(AND(X16="Y",W16="Y"),"Y","N") -> N | AA16: =IF(AND(B16>=start_date,B16<=end_date),"A",IF(B16="","C","B")) -> A | AB16: =IFERROR(MATCH(MAX(slip),C16,0),"") ->  | AC16: =IF(AND(AA16="A",AB16<>""),"Y",IF(AA16="C","Y","N")) -> N | AD16: =IF(OR(F16="",L16=""),"Y","N") -> N | AO16: =B16 -> 2022-02-28 | AP16: =C16 -> 6 | AQ16: =D16 -> 1 | AR16: =E16 -> 特会費用 | AS16: =F16 -> その他費用1 | AT16: =G16 -> AAA負担金 | AU16: =H16 -> 600000 | AV16: =I16 -> 6 | AW16: =J16 -> 1 | AX16: =K16 ->  | AY16: =L16 -> 生活支援等準備金 | AZ16: =M16 -> - | BA16: =N16 -> 600000 | BB16: =O16 -> (見込み）AAA負担金 | BC16: =P16 -> 0
A17: 可 | B17: 2022-03-01 | C17: 7 | D17: 1 | E17: 特会費用 | F17: 減価償却費 | G17: 建物減価償却費 | H17: 560000 | I17: 7 | J17: 1 | K17: 特会資産 | L17: 固定資産 | M17: 建物 | N17: 560000 | O17: 12~3月 建物減価償却費 月140,000円 x 4カ月 | Q17: =C17&D17 -> 71 | R17: =I17&J17 -> 71 | S17: =T17&U17&V17&W17 -> YNNN | T17: =IF(AND(from_date_2<=B17,to_date_2>=B17),"Y","N") -> Y | U17: =IF(F17=L17,"Y","N") -> N | V17: =IF(AND(kamoku_name<>"",F17=kamoku_name),"Y","N") -> N | W17: =IF(AND(kamoku_name<>"",L17=kamoku_name),"Y","N") -> N | X17: =IF(OR(V17="Y",W17="Y"),"Y","N") -> N | Y17: =IF(AND(X17="Y",V17="Y"),"Y","N") -> N | Z17: =IF(AND(X17="Y",W17="Y"),"Y","N") -> N | AA17: =IF(AND(B17>=start_date,B17<=end_date),"A",IF(B17="","C","B")) -> A | AB17: =IFERROR(MATCH(MAX(slip),C17,0),"") ->  | AC17: =IF(AND(AA17="A",AB17<>""),"Y",IF(AA17="C","Y","N")) -> N | AD17: =IF(OR(F17="",L17=""),"Y","N") -> N | AO17: =B17 -> 2022-03-01 | AP17: =C17 -> 7 | AQ17: =D17 -> 1 | AR17: =E17 -> 特会費用 | AS17: =F17 -> 減価償却費 | AT17: =G17 -> 建物減価償却費 | AU17: =H17 -> 560000 | AV17: =I17 -> 7 | AW17: =J17 -> 1 | AX17: =K17 -> 特会資産 | AY17: =L17 -> 固定資産 | AZ17: =M17 -> 建物 | BA17: =N17 -> 560000 | BB17: =O17 -> 12~3月 建物減価償却費 月140,000円 x 4カ月 | BC17: =P17 -> 0
A18: 可 | B18: 2022-03-31 | C18: 8 | D18: 1 | E18: 特会資産 | F18: 普通預金(準備金移動前） | G18: - | H18: 1500000 | I18: 8 | J18: 1 | K18: 特会収入 | L18: 自治会一般会計 | M18: - | N18: 1500000 | O18: (見込み）2021年度 一般会計よりの剰余金 | Q18: =C18&D18 -> 81 | R18: =I18&J18 -> 81 | S18: =T18&U18&V18&W18 -> YNNN | T18: =IF(AND(from_date_2<=B18,to_date_2>=B18),"Y","N") -> Y | U18: =IF(F18=L18,"Y","N") -> N | V18: =IF(AND(kamoku_name<>"",F18=kamoku_name),"Y","N") -> N | W18: =IF(AND(kamoku_name<>"",L18=kamoku_name),"Y","N") -> N | X18: =IF(OR(V18="Y",W18="Y"),"Y","N") -> N | Y18: =IF(AND(X18="Y",V18="Y"),"Y","N") -> N | Z18: =IF(AND(X18="Y",W18="Y"),"Y","N") -> N | AA18: =IF(AND(B18>=start_date,B18<=end_date),"A",IF(B18="","C","B")) -> A | AB18: =IFERROR(MATCH(MAX(slip),C18,0),"") -> 1 | AC18: =IF(AND(AA18="A",AB18<>""),"Y",IF(AA18="C","Y","N")) -> Y | AD18: =IF(OR(F18="",L18=""),"Y","N") -> N | AO18: =B18 -> 2022-03-31 | AP18: =C18 -> 8 | AQ18: =D18 -> 1 | AR18: =E18 -> 特会資産 | AS18: =F18 -> 普通預金(準備金移動前） | AT18: =G18 -> - | AU18: =H18 -> 1500000 | AV18: =I18 -> 8 | AW18: =J18 -> 1 | AX18: =K18 -> 特会収入 | AY18: =L18 -> 自治会一般会計 | AZ18: =M18 -> - | BA18: =N18 -> 1500000 | BB18: =O18 -> (見込み）2021年度 一般会計よりの剰余金 | BC18: =P18 -> 0
A19: 可 | B19: 2022-03-31 | C19: 8 | D19: 2 | E19: 特会資産 | F19: A準備金 | G19: - | H19: 200000 | I19: 8 | J19: 2 | K19: 特会資産 | L19: 普通預金(準備金移動前） | M19: - | N19: 200000 | O19: (見込み）2021年度 A準備金 追加 | Q19: =C19&D19 -> 82 | R19: =I19&J19 -> 82 | S19: =T19&U19&V19&W19 -> YNNN | T19: =IF(AND(from_date_2<=B19,to_date_2>=B19),"Y","N") -> Y | U19: =IF(F19=L19,"Y","N") -> N | V19: =IF(AND(kamoku_name<>"",F19=kamoku_name),"Y","N") -> N | W19: =IF(AND(kamoku_name<>"",L19=kamoku_name),"Y","N") -> N | X19: =IF(OR(V19="Y",W19="Y"),"Y","N") -> N | Y19: =IF(AND(X19="Y",V19="Y"),"Y","N") -> N | Z19: =IF(AND(X19="Y",W19="Y"),"Y","N") -> N | AA19: =IF(AND(B19>=start_date,B19<=end_date),"A",IF(B19="","C","B")) -> A | AB19: =IFERROR(MATCH(MAX(slip),C19,0),"") -> 1 | AC19: =IF(AND(AA19="A",AB19<>""),"Y",IF(AA19="C","Y","N")) -> Y | AD19: =IF(OR(F19="",L19=""),"Y","N") -> N | AO19: =B19 -> 2022-03-31 | AP19: =C19 -> 8 | AQ19: =D19 -> 2 | AR19: =E19 -> 特会資産 | AS19: =F19 -> A準備金 | AT19: =G19 -> - | AU19: =H19 -> 200000 | AV19: =I19 -> 8 | AW19: =J19 -> 2 | AX19: =K19 -> 特会資産 | AY19: =L19 -> 普通預金(準備金移動前） | AZ19: =M19 -> - | BA19: =N19 -> 200000 | BB19: =O19 -> (見込み）2021年度 A準備金 追加 | BC19: =P19 -> 0
A20: 可 | B20: 2022-03-31 | C20: 8 | D20: 3 | E20: 特会資産 | F20: C準備金 | G20: - | H20: 1300000 | I20: 8 | J20: 3 | K20: 特会資産 | L20: 普通預金(準備金移動前） | M20: - | N20: 1300000 | O20: (見込み）2021年度 C準備金 追加 | Q20: =C20&D20 -> 83 | R20: =I20&J20 -> 83 | S20: =T20&U20&V20&W20 -> YNNN | T20: =IF(AND(from_date_2<=B20,to_date_2>=B20),"Y","N") -> Y | U20: =IF(F20=L20,"Y","N") -> N | V20: =IF(AND(kamoku_name<>"",F20=kamoku_name),"Y","N") -> N | W20: =IF(AND(kamoku_name<>"",L20=kamoku_name),"Y","N") -> N | X20: =IF(OR(V20="Y",W20="Y"),"Y","N") -> N | Y20: =IF(AND(X20="Y",V20="Y"),"Y","N") -> N | Z20: =IF(AND(X20="Y",W20="Y"),"Y","N") -> N | AA20: =IF(AND(B20>=start_date,B20<=end_date),"A",IF(B20="","C","B")) -> A | AB20: =IFERROR(MATCH(MAX(slip),C20,0),"") -> 1 | AC20: =IF(AND(AA20="A",AB20<>""),"Y",IF(AA20="C","Y","N")) -> Y | AD20: =IF(OR(F20="",L20=""),"Y","N") -> N | AO20: =B20 -> 2022-03-31 | AP20: =C20 -> 8 | AQ20: =D20 -> 3 | AR20: =E20 -> 特会資産 | AS20: =F20 -> C準備金 | AT20: =G20 -> - | AU20: =H20 -> 1300000 | AV20: =I20 -> 8 | AW20: =J20 -> 3 | AX20: =K20 -> 特会資産 | AY20: =L20 -> 普通預金(準備金移動前） | AZ20: =M20 -> - | BA20: =N20 -> 1300000 | BB20: =O20 -> (見込み）2021年度 C準備金 追加 | BC20: =P20 -> 0
A21: 可 | I21: 0 | J21: 0 | Q21: =C21&D21 ->  | R21: =I21&J21 -> 00 | S21: =T21&U21&V21&W21 -> NYNN | T21: =IF(AND(from_date_2<=B21,to_date_2>=B21),"Y","N") -> N | U21: =IF(F21=L21,"Y","N") -> Y | V21: =IF(AND(kamoku_name<>"",F21=kamoku_name),"Y","N") -> N | W21: =IF(AND(kamoku_name<>"",L21=kamoku_name),"Y","N") -> N | X21: =IF(OR(V21="Y",W21="Y"),"Y","N") -> N | Y21: =IF(AND(X21="Y",V21="Y"),"Y","N") -> N | Z21: =IF(AND(X21="Y",W21="Y"),"Y","N") -> N | AA21: =IF(AND(B21>=start_date,B21<=end_date),"A",IF(B21="","C","B")) -> C | AB21: =IFERROR(MATCH(MAX(slip),C21,0),"") ->  | AC21: =IF(AND(AA21="A",AB21<>""),"Y",IF(AA21="C","Y","N")) -> Y | AD21: =IF(OR(F21="",L21=""),"Y","N") -> Y | AO21: =B21 -> 00:00:00 | AP21: =C21 -> 0 | AQ21: =D21 -> 0 | AR21: =E21 ->  | AS21: =F21 -> 0 | AT21: =G21 -> 0 | AU21: =H21 -> 0 | AV21: =I21 -> 0 | AW21: =J21 -> 0 | AX21: =K21 ->  | AY21: =L21 -> 0 | AZ21: =M21 -> 0 | BA21: =N21 -> 0 | BB21: =O21 -> 0 | BC21: =P21 -> 0
A22: =IF(AND(_xlfn.ISFORMULA(K22),_xlfn.ISFORMULA(E22),_xlfn.ISFORMULA(Q22:AD22),_xlfn.ISFORMULA(AL22),_xlfn.ISFORMULA(AO22:BC22)),"可","不可") -> 可 | I22: 0 | J22: 0 | Q22: =C22&D22 ->  | R22: =I22&J22 -> 00 | S22: =T22&U22&V22&W22 -> NYNN | T22: =IF(AND(from_date_2<=B22,to_date_2>=B22),"Y","N") -> N | U22: =IF(F22=L22,"Y","N") -> Y | V22: =IF(AND(kamoku_name<>"",F22=kamoku_name),"Y","N") -> N | W22: =IF(AND(kamoku_name<>"",L22=kamoku_name),"Y","N") -> N | X22: =IF(OR(V22="Y",W22="Y"),"Y","N") -> N | Y22: =IF(AND(X22="Y",V22="Y"),"Y","N") -> N | Z22: =IF(AND(X22="Y",W22="Y"),"Y","N") -> N | AA22: =IF(AND(B22>=start_date,B22<=end_date),"A",IF(B22="","C","B")) -> C | AB22: =IFERROR(MATCH(MAX(slip),C22,0),"") ->  | AC22: =IF(AND(AA22="A",AB22<>""),"Y",IF(AA22="C","Y","N")) -> Y | AD22: =IF(OR(F22="",L22=""),"Y","N") -> Y | AO22: =B22 -> 00:00:00 | AP22: =C22 -> 0 | AQ22: =D22 -> 0 | AR22: =E22 ->  | AS22: =F22 -> 0 | AT22: =G22 -> 0 | AU22: =H22 -> 0 | AV22: =I22 -> 0 | AW22: =J22 -> 0 | AX22: =K22 ->  | AY22: =L22 -> 0 | AZ22: =M22 -> 0 | BA22: =N22 -> 0 | BB22: =O22 -> 0 | BC22: =P22 -> 0
A23: 可 | I23: 0 | J23: 0 | R23: 00 | S23: NYNN | T23: N | U23: Y | V23: N | W23: N | X23: N | Y23: N | Z23: N | AA23: =IF(ISBLANK(B23),"N","Y") -> N | AC23: =IF(OR(AA23="N",AB23<>""),"Y","N") -> Y | AD23: Y | AO23: 00:00:00 | AP23: 0 | AQ23: 0 | AS23: 0 | AT23: 0 | AU23: 0 | AV23: 0 | AW23: 0 | AY23: 0 | AZ23: 0 | BA23: 0 | BB23: 0 | BC23: 0
A24: 可 | E24: =IFERROR(VLOOKUP(F24,g_kamoku,2,FALSE),"") ->  | I24: 0 | J24: 0 | K24: =IFERROR(VLOOKUP(L24,g_kamoku,2,FALSE),"") ->  | R24: 00 | S24: NYNN | T24: N | U24: Y | V24: N | W24: N | X24: N | Y24: N | Z24: N | AA24: N | AC24: Y | AD24: Y | AO24: 00:00:00 | AP24: 0 | AQ24: 0 | AS24: 0 | AT24: 0 | AU24: 0 | AV24: 0 | AW24: 0 | AY24: 0 | AZ24: 0 | BA24: 0 | BB24: 0 | BC24: 0
A25: 可 | I25: 0 | J25: 0 | R25: 00 | S25: NYNN | T25: N | U25: Y | V25: N | W25: N | X25: N | Y25: N | Z25: N | AA25: N | AC25: Y | AD25: Y | AO25: 00:00:00 | AP25: 0 | AQ25: 0 | AS25: 0 | AT25: 0 | AU25: 0 | AV25: 0 | AW25: 0 | AY25: 0 | AZ25: 0 | BA25: 0 | BB25: 0 | BC25: 0
A26: 可 | S26: =T26&U26&V26&W26 -> NYNN | T26: =IF(AND(from_date_2<=B26,to_date_2>=B26),"Y","N") -> N | U26: =IF(E26=K26,"Y","N") -> Y | V26: =IF(AND(list_kamoku_2<>"",E26=list_kamoku_2),"Y","N") -> N | W26: =IF(AND(list_kamoku_2<>"",K26=list_kamoku_2),"Y","N") -> N | X26: =IF(OR(V26="Y",W26="Y"),"Y","N") -> N | Y26: =IF(AND(X26="Y",V26="Y"),"Y","N") -> N | Z26: =IF(AND(X26="Y",W26="Y"),"Y","N") -> N | AA26: N | AB26: =IFERROR(MATCH(MAX(slip),C26,0),"") ->  | AC26: Y | AD26: =IF(OR(F26="",L26=""),"Y","N") -> Y | AO26: 00:00:00 | AP26: 0 | AQ26: 0 | AS26: 0 | AT26: 0 | AU26: 0 | AV26: 0 | AW26: 0 | AY26: 0 | AZ26: 0 | BA26: 0 | BB26: 0 | BC26: 0
A27: 可 | S27: NYNN | T27: N | U27: Y | V27: N | W27: N | X27: N | Y27: N | Z27: N | AA27: N | AC27: Y | AD27: Y | AO27: 00:00:00 | AP27: 0 | AQ27: 0 | AS27: 0 | AT27: 0 | AU27: 0 | AV27: 0 | AW27: 0 | AY27: 0 | AZ27: 0 | BA27: 0 | BB27: 0 | BC27: 0
A28: 可 | S28: NYNN | T28: N | U28: Y | V28: N | W28: N | X28: N | Y28: N | Z28: N | AA28: N | AC28: Y | AD28: Y | AO28: 00:00:00 | AP28: 0 | AQ28: 0 | AS28: 0 | AT28: 0 | AU28: 0 | AV28: 0 | AW28: 0 | AY28: 0 | AZ28: 0 | BA28: 0 | BB28: 0 | BC28: 0
A29: 可 | S29: NYNN | T29: N | U29: Y | V29: N | W29: N | X29: N | Y29: N | Z29: N | AA29: N | AC29: Y | AD29: Y | AO29: 00:00:00 | AP29: 0 | AQ29: 0 | AS29: 0 | AT29: 0 | AU29: 0 | AV29: 0 | AW29: 0 | AY29: 0 | AZ29: 0 | BA29: 0 | BB29: 0 | BC29: 0
A30: 可 | S30: NYNN | T30: N | U30: Y | V30: N | W30: N | X30: N | Y30: N | Z30: N | AA30: N | AC30: Y | AD30: Y | AO30: 00:00:00 | AP30: 0 | AQ30: 0 | AS30: 0 | AT30: 0 | AU30: 0 | AV30: 0 | AW30: 0 | AY30: 0 | AZ30: 0 | BA30: 0 | BB30: 0 | BC30: 0
A31: 可 | S31: NYNN | T31: N | U31: Y | V31: N | W31: N | X31: N | Y31: N | Z31: N | AA31: N | AC31: Y | AD31: Y | AO31: 00:00:00 | AP31: 0 | AQ31: 0 | AS31: 0 | AT31: 0 | AU31: 0 | AV31: 0 | AW31: 0 | AY31: 0 | AZ31: 0 | BA31: 0 | BB31: 0 | BC31: 0
A32: 可 | S32: NYNN | T32: N | U32: Y | V32: N | W32: N | X32: N | Y32: N | Z32: N | AA32: N | AC32: Y | AD32: Y | AO32: 00:00:00 | AP32: 0 | AQ32: 0 | AS32: 0 | AT32: 0 | AU32: 0 | AV32: 0 | AW32: 0 | AY32: 0 | AZ32: 0 | BA32: 0 | BB32: 0 | BC32: 0
A33: 可 | S33: NYNN | T33: N | U33: Y | V33: N | W33: N | X33: N | Y33: N | Z33: N | AA33: N | AC33: Y | AD33: Y | AO33: 00:00:00 | AP33: 0 | AQ33: 0 | AS33: 0 | AT33: 0 | AU33: 0 | AV33: 0 | AW33: 0 | AY33: =L33 -> 0 | AZ33: =M33 -> 0 | BA33: =N33 -> 0 | BB33: 0 | BC33: 0
AO34: =B34 -> 00:00:00 | AP34: =IF(V34="Y",C34,"") ->  | AQ34: =IF(V34="Y",D34,"") ->  | AR34: =IF(V34="Y",E34,"") ->  | AS34: =IF(V34="Y",F34,"") ->  | AT34: =IF(V34="Y",G34,"") ->  | AU34: =IF(V34="Y",H34,"") -> 
AO35: 00:00:00
AO36: 00:00:00
AO37: 00:00:00
AO38: 00:00:00
AO39: 00:00:00
AO40: 00:00:00
AO41: 00:00:00
AO42: 00:00:00
AO43: 00:00:00
AO44: 00:00:00
AO45: 00:00:00
AO46: 00:00:00
AO47: 00:00:00
AO48: 00:00:00
AO49: 00:00:00
AO50: 00:00:00
AO51: 00:00:00
AO52: 00:00:00
AO53: 00:00:00
AO54: 00:00:00

Sheet 期間別試算表
A1: 計算期間は「説明」シートへ登録ください。
C2: =説明!C24 -> A自治会_特別会計 | BI2: =BE4 -> 2021 | BJ2: 年度 | BK2: 予実績比較表
C3: 試算表 | BM3: 単位：円
C4: =説明!D26 -> 2021 | E4: 年度 | F4: =説明!E29 -> 2021-03-31 | H4: =IF(説明!D30="","",説明!D30) -> 2021-04-01 | I4: ～ | J4: =説明!E30 -> 2022-03-31 | L4: =IF(説明!D31="","",説明!D31) ->  | M4: ～ | N4: =IF(説明!E31="","",説明!E31) ->  | P4: =IF(説明!D32="","",説明!D32) ->  | Q4: ～ | R4: =IF(説明!E32="","",説明!E32) ->  | T4: =IF(説明!D33="","",説明!D33) ->  | U4: ～ | V4: =IF(説明!E33="","",説明!E33) ->  | X4: =IF(説明!D34="","",説明!D34) ->  | Y4: ～ | Z4: =IF(説明!E34="","",説明!E34) ->  | AB4: =IF(説明!D35="","",説明!D35) ->  | AC4: ～ | AD4: =IF(説明!E35="","",説明!E35) ->  | AF4: =IF(説明!D36="","",説明!D36) ->  | AG4: ～ | AH4: =IF(説明!E36="","",説明!E36) ->  | AJ4: =IF(説明!D37="","",説明!D37) ->  | AK4: ～ | AL4: =IF(説明!E37="","",説明!E37) ->  | AN4: =IF(説明!D38="","",説明!D38) ->  | AO4: ～ | AP4: =IF(説明!E38="","",説明!E38) ->  | AR4: =IF(説明!D39="","",説明!D39) ->  | AS4: ～ | AT4: =IF(説明!E39="","",説明!E39) ->  | AV4: =IF(説明!D40="","",説明!D40) ->  | AW4: ～ | AX4: =IF(説明!E40="","",説明!E40) ->  | AZ4: =IF(説明!D41="","",説明!D41) ->  | BA4: ～ | BB4: =IF(説明!E41="","",説明!E41) ->  | BE4: =説明!D26 -> 2021 | BF4: 年度予算 | BI4: 2019実績 | BJ4: 2020実績 | BK4: 年間予算<1> | BL4: 累計実績<2> | BM4: 差異<1>-<2>
C5: 単位：円 | F5: 繰越残高 | H5: 発生 | J5: 残高 | L5: 発生 | N5: 残高 | P5: 発生 | R5: 残高 | T5: 発生 | V5: 残高 | X5: 発生 | Z5: 残高 | AB5: 発生 | AD5: 残高 | AF5: 発生 | AH5: 残高 | AJ5: 発生 | AL5: 残高 | AN5: 発生 | AP5: 残高 | AR5: 発生 | AT5: 残高 | AV5: 発生 | AX5: 残高 | AZ5: 発生 | BB5: 残高 | BH5: 期首繰越現金 | BK5: =F7 -> 0 | BL5: =F7 -> 0 | BM5: =BK5-BL5 -> 0
F6: 借方 | G6: 貸方 | H6: 借方 | I6: 貸方 | J6: 借方 | K6: 貸方 | L6: 借方 | M6: 貸方 | N6: 借方 | O6: 貸方 | P6: 借方 | Q6: 貸方 | R6: 借方 | S6: 貸方 | T6: 借方 | U6: 貸方 | V6: 借方 | W6: 貸方 | X6: 借方 | Y6: 貸方 | Z6: 借方 | AA6: 貸方 | AB6: 借方 | AC6: 貸方 | AD6: 借方 | AE6: 貸方 | AF6: 借方 | AG6: 貸方 | AH6: 借方 | AI6: 貸方 | AJ6: 借方 | AK6: 貸方 | AL6: 借方 | AM6: 貸方 | AN6: 借方 | AO6: 貸方 | AP6: 借方 | AQ6: 貸方 | AR6: 借方 | AS6: 貸方 | AT6: 借方 | AU6: 貸方 | AV6: 借方 | AW6: 貸方 | AX6: 借方 | AY6: 貸方 | AZ6: 借方 | BA6: 貸方 | BB6: 借方 | BC6: 貸方 | BE6: 借方 | BF6: 貸方 | BH6: 期首繰越普通預金1 | BK6: =F8 -> 0 | BL6: =F8 -> 0 | BM6: 0
A7: =科目細分類表!E4 -> 特会資産 | C7: 資産 | D7: =科目細分類表!E5 -> 現金 | F7: =説明!D46 -> 0 | H7: 0 | I7: 0 | J7: =F7+H7-I7 -> 0 | N7: =J7+L7-M7 -> 0 | R7: =N7+P7-Q7 -> 0 | V7: =R7+T7-U7 -> 0 | Z7: =V7+X7-Y7 -> 0 | AD7: =Z7+AB7-AC7 -> 0 | AH7: =AD7+AF7-AG7 -> 0 | AL7: =AH7+AJ7-AK7 -> 0 | AP7: =AL7+AN7-AO7 -> 0 | AT7: =AP7+AR7-AS7 -> 0 | AX7: =AT7+AV7-AW7 -> 0 | BB7: =AX7+AZ7-BA7 -> 0 | BE7: =説明!D46 -> 0 | BH7: 期末現金（繰越含む） | BK7: =BE7 -> 0 | BL7: =BB7 -> 0 | BM7: 0
A8: =科目細分類表!F4 -> 特会資産 | D8: =科目細分類表!F5 -> 普通預金(準備金移動前） | F8: =説明!D47 -> 0 | H8: 3425423 | I8: 3425423 | J8: 0 | N8: 0 | R8: 0 | V8: 0 | Z8: 0 | AD8: 0 | AH8: 0 | AL8: 0 | AP8: 0 | AT8: 0 | AX8: 0 | BB8: 0 | BH8: 期末普通預金（繰越含む） | BK8: =BE8 -> 0 | BL8: =BB8 -> 0 | BM8: 0
A9: =科目細分類表!G4 -> 特会資産 | D9: =科目細分類表!G5 -> A準備金 | F9: =説明!D48 -> 6300000 | H9: 2125423 | I9: 7800000 | J9: 625423 | N9: 625423 | R9: 625423 | V9: 625423 | Z9: 625423 | AD9: 625423 | AH9: 625423 | AL9: 625423 | AP9: 625423 | AT9: 625423 | AX9: 625423 | BB9: 625423 | BH9: =D9 -> A準備金 | BK9: =BE9 -> 0 | BL9: =BC9 -> 0 | BM9: 0
A10: =科目細分類表!H4 -> 特会資産 | D10: =科目細分類表!H5 -> B準備金 | F10: =説明!D49 -> 0 | H10: 7200000 | I10: 0 | J10: 7200000 | N10: 7200000 | R10: 7200000 | V10: 7200000 | Z10: 7200000 | AD10: 7200000 | AH10: 7200000 | AL10: 7200000 | AP10: 7200000 | AT10: 7200000 | AX10: 7200000 | BB10: 7200000 | BH10: B準備金 | BK10: =BE10 -> 0 | BL10: =BB10 -> 7200000 | BM10: -7200000
A11: =科目細分類表!I4 -> 特会資産 | D11: =科目細分類表!I5 -> C準備金 | F11: =説明!D50 -> 0 | H11: 1300000 | I11: 600000 | J11: 700000 | N11: 700000 | R11: 700000 | V11: 700000 | Z11: 700000 | AD11: 700000 | AH11: 700000 | AL11: 700000 | AP11: 700000 | AT11: 700000 | AX11: 700000 | BB11: 700000 | BH11: C準備金 | BK11: =BF11 -> 0 | BL11: =BC11 -> 0 | BM11: 0
A12: =科目細分類表!J4 -> 特会資産 | D12: =科目細分類表!J5 -> 固定資産 | F12: =説明!D51 -> 61300000 | H12: 0 | I12: 1680000 | J12: 59620000 | N12: 59620000 | R12: 59620000 | V12: 59620000 | Z12: 59620000 | AD12: 59620000 | AH12: 59620000 | AL12: 59620000 | AP12: 59620000 | AT12: 59620000 | AX12: 59620000 | BB12: 59620000 | BH12: 固定資産 | BK12: =BE12 -> 0 | BL12: =BC12 -> 0 | BM12: 0
A13: =科目細分類表!K4 -> 特会資産 | D13: =科目細分類表!K5 -> その他資産 | F13: =説明!D52 -> 0 | H13: 0 | I13: 0 | J13: 0 | N13: 0 | R13: 0 | V13: 0 | Z13: 0 | AD13: 0 | AH13: 0 | AL13: 0 | AP13: 0 | AT13: 0 | AX13: 0 | BB13: 0 | BH13: =D13 -> その他資産 | BK13: =BF13 -> 0 | BL13: =BC13 -> 0 | BM13: 0
D14: 資産計 | F14: =SUM(F7:F13) -> 67600000 | H14: =SUM(H7:H13) -> 14050846 | I14: =SUM(I7:I13) -> 13505423 | J14: =SUM(J7:J13) -> 68145423 | L14: =SUM(L7:L13) -> 0 | M14: =SUM(M7:M13) -> 0 | N14: =SUM(N7:N13) -> 68145423 | P14: =SUM(P7:P13) -> 0 | Q14: =SUM(Q7:Q13) -> 0 | R14: =SUM(R7:R13) -> 68145423 | T14: =SUM(T7:T13) -> 0 | U14: =SUM(U7:U13) -> 0 | V14: =SUM(V7:V13) -> 68145423 | X14: =SUM(X7:X13) -> 0 | Y14: =SUM(Y7:Y13) -> 0 | Z14: =SUM(Z7:Z13) -> 68145423 | AB14: =SUM(AB7:AB13) -> 0 | AC14: =SUM(AC7:AC13) -> 0 | AD14: =SUM(AD7:AD13) -> 68145423 | AF14: =SUM(AF7:AF13) -> 0 | AG14: =SUM(AG7:AG13) -> 0 | AH14: =SUM(AH7:AH13) -> 68145423 | AJ14: =SUM(AJ7:AJ13) -> 0 | AK14: =SUM(AK7:AK13) -> 0 | AL14: =SUM(AL7:AL13) -> 68145423 | AN14: =SUM(AN7:AN13) -> 0 | AO14: =SUM(AO7:AO13) -> 0 | AP14: =SUM(AP7:AP13) -> 68145423 | AR14: =SUM(AR7:AR13) -> 0 | AS14: =SUM(AS7:AS13) -> 0 | AT14: =SUM(AT7:AT13) -> 68145423 | AV14: =SUM(AV7:AV13) -> 0 | AW14: =SUM(AW7:AW13) -> 0 | AX14: =SUM(AX7:AX13) -> 68145423 | AZ14: =SUM(AZ7:AZ13) -> 0 | BA14: =SUM(BA7:BA13) -> 0 | BB14: =SUM(BB7:BB13) -> 68145423
A15: =科目細分類表!L4 -> 特会負債 | C15: 負債 | D15: =科目細分類表!L5 -> 銀行借入金 | G15: =説明!D53 -> 0 | H15: 0 | I15: 0 | K15: =G15+I15-H15 -> 0 | O15: =K15+M15-L15 -> 0 | S15: =O15+Q15-P15 -> 0 | W15: =S15+U15-T15 -> 0 | AA15: =W15+Y15-X15 -> 0 | AE15: =AA15+AC15-AB15 -> 0 | AI15: =AE15+AG15-AF15 -> 0 | AM15: =AI15+AK15-AJ15 -> 0 | AQ15: =AM15+AO15-AN15 -> 0 | AU15: =AQ15+AS15-AR15 -> 0 | AY15: =AU15+AW15-AV15 -> 0 | BC15: =AY15+BA15-AZ15 -> 0 | BH15: 銀行借入金 | BK15: =BF15 -> 0 | BL15: =BC15 -> 0 | BM15: 0
A16: =科目細分類表!M4 -> 特会負債 | D16: =科目細分類表!M5 -> その他負債 | G16: =説明!D54 -> 0 | H16: 0 | I16: 0 | K16: =G16+I16-H16 -> 0 | O16: =K16+M16-L16 -> 0 | S16: =O16+Q16-P16 -> 0 | W16: =S16+U16-T16 -> 0 | AA16: =W16+Y16-X16 -> 0 | AE16: =AA16+AC16-AB16 -> 0 | AI16: =AE16+AG16-AF16 -> 0 | AM16: =AI16+AK16-AJ16 -> 0 | AQ16: =AM16+AO16-AN16 -> 0 | AU16: =AQ16+AS16-AR16 -> 0 | AY16: =AU16+AW16-AV16 -> 0 | BC16: =AY16+BA16-AZ16 -> 0 | BH16: その他負債 | BK16: =BF16 -> 0 | BL16: =BC16 -> 0 | BM16: 0
D17: 負債計 | G17: =SUM(G15:G16) -> 0 | H17: =SUM(H15:H16) -> 0 | I17: =SUM(I15:I16) -> 0 | K17: =SUM(K15:K16) -> 0 | L17: =SUM(L15:L16) -> 0 | M17: =SUM(M15:M16) -> 0 | O17: =SUM(O15:O16) -> 0 | P17: =SUM(P15:P16) -> 0 | Q17: =SUM(Q15:Q16) -> 0 | S17: =SUM(S15:S16) -> 0 | T17: =SUM(T15:T16) -> 0 | U17: =SUM(U15:U16) -> 0 | W17: =SUM(W15:W16) -> 0 | X17: =SUM(X15:X16) -> 0 | Y17: =SUM(Y15:Y16) -> 0 | AA17: =SUM(AA15:AA16) -> 0 | AB17: =SUM(AB15:AB16) -> 0 | AC17: =SUM(AC15:AC16) -> 0 | AE17: =SUM(AE15:AE16) -> 0 | AF17: =SUM(AF15:AF16) -> 0 | AG17: =SUM(AG15:AG16) -> 0 | AI17: =SUM(AI15:AI16) -> 0 | AJ17: =SUM(AJ15:AJ16) -> 0 | AK17: =SUM(AK15:AK16) -> 0 | AM17: =SUM(AM15:AM16) -> 0 | AN17: =SUM(AN15:AN16) -> 0 | AO17: =SUM(AO15:AO16) -> 0 | AQ17: =SUM(AQ15:AQ16) -> 0 | AR17: =SUM(AR15:AR16) -> 0 | AS17: =SUM(AS15:AS16) -> 0 | AU17: =SUM(AU15:AU16) -> 0 | AV17: =SUM(AV15:AV16) -> 0 | AW17: =SUM(AW15:AW16) -> 0 | AY17: =SUM(AY15:AY16) -> 0 | AZ17: =SUM(AZ15:AZ16) -> 0 | BA17: =SUM(BA15:BA16) -> 0 | BC17: =SUM(BC15:BC16) -> 0 | BF17: =SUM(BF13:BF16) -> 0 | BH17: =D17 -> 負債計 | BI17: =SUM(BI13:BI16) -> 0 | BJ17: =SUM(BJ13:BJ16) -> 0 | BK17: 0 | BL17: 0 | BM17: 0
C18: 資産ー負債 | G18: =F14-G17 -> 67600000 | H18: 0 | I18: =H14-I14 -> 545423 | K18: =J14-K17 -> 68145423 | L18: 0 | M18: =L14-M14 -> 0 | O18: =N14-O17 -> 68145423 | P18: 0 | Q18: =P14-Q14 -> 0 | S18: =R14-S17 -> 68145423 | T18: 0 | U18: =T14-U14 -> 0 | W18: =V14-W17 -> 68145423 | X18: 0 | Y18: =X14-Y14 -> 0 | AA18: =Z14-AA17 -> 68145423 | AB18: 0 | AC18: =AB14-AC14 -> 0 | AE18: =AD14-AE17 -> 68145423 | AF18: 0 | AG18: =AF14-AG14 -> 0 | AI18: =AH14-AI17 -> 68145423 | AJ18: 0 | AK18: =AJ14-AK14 -> 0 | AM18: =AL14-AM17 -> 68145423 | AN18: 0 | AO18: =AN14-AO14 -> 0 | AQ18: =AP14-AQ17 -> 68145423 | AR18: 0 | AS18: =AR14-AS14 -> 0 | AU18: =AT14-AU17 -> 68145423 | AV18: 0 | AW18: =AV14-AW14 -> 0 | AY18: =AX14-AY17 -> 68145423 | AZ18: 0 | BA18: =AZ14-BA14 -> 0 | BC18: =BB14-BC17 -> 68145423
A19: =科目細分類表!N4 -> 特会収入 | C19: 収入 | D19: =科目細分類表!N5 -> 自治会一般会計 | H19: 0 | I19: 3425396 | K19: =G19+I19-H19 -> 3425396 | O19: =K19+M19-L19 -> 3425396 | S19: =O19+Q19-P19 -> 3425396 | W19: =S19+U19-T19 -> 3425396 | AA19: =W19+Y19-X19 -> 3425396 | AE19: =AA19+AC19-AB19 -> 3425396 | AI19: =AE19+AG19-AF19 -> 3425396 | AM19: =AI19+AK19-AJ19 -> 3425396 | AQ19: =AM19+AO19-AN19 -> 3425396 | AU19: =AQ19+AS19-AR19 -> 3425396 | AY19: =AU19+AW19-AV19 -> 3425396 | BC19: =AY19+BA19-AZ19 -> 3425396 | BH19: 自治会一般会計 | BK19: 0 | BL19: =BB19 -> 0 | BM19: 0
A20: =科目細分類表!O4 -> 特会収入 | D20: =科目細分類表!O5 -> その他収入 | H20: 0 | I20: 27 | K20: =G20+I20-H20 -> 27 | O20: =K20+M20-L20 -> 27 | S20: =O20+Q20-P20 -> 27 | W20: =S20+U20-T20 -> 27 | AA20: =W20+Y20-X20 -> 27 | AE20: =AA20+AC20-AB20 -> 27 | AI20: =AE20+AG20-AF20 -> 27 | AM20: =AI20+AK20-AJ20 -> 27 | AQ20: =AM20+AO20-AN20 -> 27 | AU20: =AQ20+AS20-AR20 -> 27 | AY20: =AU20+AW20-AV20 -> 27 | BC20: =AY20+BA20-AZ20 -> 27 | BH20: その他収入 | BK20: 0 | BL20: 0 | BM20: 0
D21: 収入計 | G21: =SUM(G19:G20) -> 0 | H21: 0 | I21: 3425423 | J21: 0 | K21: 3425423 | L21: 0 | M21: 0 | N21: 0 | O21: 3425423 | P21: 0 | Q21: 0 | R21: 0 | S21: 3425423 | T21: 0 | U21: 0 | V21: 0 | W21: 3425423 | X21: 0 | Y21: 0 | Z21: 0 | AA21: 3425423 | AB21: 0 | AC21: 0 | AD21: 0 | AE21: 3425423 | AF21: 0 | AG21: 0 | AH21: 0 | AI21: 3425423 | AJ21: 0 | AK21: 0 | AL21: 0 | AM21: =SUM(AM19:AM20) -> 3425423 | AN21: 0 | AO21: 0 | AP21: 0 | AQ21: 3425423 | AR21: 0 | AS21: 0 | AT21: 0 | AU21: 3425423 | AV21: 0 | AW21: 0 | AX21: 0 | AY21: 3425423 | AZ21: 0 | BA21: 0 | BB21: 0 | BC21: 3425423
A22: =科目細分類表!P4 -> 特会費用 | C22: 費用 | D22: =科目細分類表!P5 -> 修繕費 | H22: 600000 | I22: 0 | J22: =F22+H22-I22 -> 600000 | N22: =J22+L22-M22 -> 600000 | R22: =N22+P22-Q22 -> 600000 | V22: =R22+T22-U22 -> 600000 | Z22: =V22+X22-Y22 -> 600000 | AD22: =Z22+AB22-AC22 -> 600000 | AH22: =AD22+AF22-AG22 -> 600000 | AL22: =AH22+AJ22-AK22 -> 600000 | AP22: =AL22+AN22-AO22 -> 600000 | AT22: =AP22+AR22-AS22 -> 600000 | AX22: =AT22+AV22-AW22 -> 600000 | BB22: =AX22+AZ22-BA22 -> 600000 | BH22: 修繕費 | BK22: 0 | BL22: 600000 | BM22: -600000
A23: =科目細分類表!Q4 -> 特会費用 | D23: =科目細分類表!Q5 -> 減価償却費 | H23: 1680000 | I23: 0 | J23: 1680000 | N23: 1680000 | R23: 1680000 | V23: 1680000 | Z23: 1680000 | AD23: 1680000 | AH23: 1680000 | AL23: 1680000 | AP23: 1680000 | AT23: 1680000 | AX23: 1680000 | BB23: 1680000 | BH23: 減価償却費 | BK23: 0 | BL23: 1680000 | BM23: -1680000
A24: =科目細分類表!R4 -> 特会費用 | D24: =科目細分類表!R5 -> その他費用1 | H24: 600000 | I24: 0 | J24: 600000 | N24: 600000 | R24: 600000 | V24: 600000 | Z24: 600000 | AD24: 600000 | AH24: 600000 | AL24: 600000 | AP24: 600000 | AT24: 600000 | AX24: 600000 | BB24: 600000 | BH24: その他費用1 | BK24: 0 | BL24: 600000 | BM24: -600000
A25: =科目細分類表!S4 -> 特会費用 | D25: =科目細分類表!S5 -> その他費用2 | H25: 0 | I25: 0 | J25: 0 | N25: 0 | R25: 0 | V25: 0 | Z25: 0 | AD25: 0 | AH25: 0 | AL25: 0 | AP25: 0 | AT25: 0 | AX25: 0 | BB25: 0 | BH25: =D25 -> その他費用2 | BK25: 0
D26: 費用計 | H26: =SUM(H22:H25) -> 2880000 | I26: =SUM(I22:I25) -> 0 | J26: =SUM(J19:J25) -> 2880000 | L26: =SUM(L22:L25) -> 0 | M26: =SUM(M22:M25) -> 0 | N26: =SUM(N19:N25) -> 2880000 | P26: =SUM(P22:P25) -> 0 | Q26: =SUM(Q22:Q25) -> 0 | R26: =SUM(R19:R25) -> 2880000 | T26: =SUM(T22:T25) -> 0 | U26: =SUM(U22:U25) -> 0 | V26: =SUM(V19:V25) -> 2880000 | X26: =SUM(X22:X25) -> 0 | Y26: =SUM(Y22:Y25) -> 0 | Z26: =SUM(Z19:Z25) -> 2880000 | AB26: =SUM(AB22:AB25) -> 0 | AC26: =SUM(AC22:AC25) -> 0 | AD26: =SUM(AD19:AD25) -> 2880000 | AF26: =SUM(AF22:AF25) -> 0 | AG26: =SUM(AG22:AG25) -> 0 | AH26: =SUM(AH19:AH25) -> 2880000 | AJ26: =SUM(AJ22:AJ25) -> 0 | AK26: =SUM(AK22:AK25) -> 0 | AL26: =SUM(AL19:AL25) -> 2880000 | AN26: =SUM(AN22:AN25) -> 0 | AO26: =SUM(AO22:AO25) -> 0 | AP26: =SUM(AP19:AP25) -> 2880000 | AR26: =SUM(AR22:AR25) -> 0 | AS26: =SUM(AS22:AS25) -> 0 | AT26: =SUM(AT19:AT25) -> 2880000 | AV26: =SUM(AV22:AV25) -> 0 | AW26: =SUM(AW22:AW25) -> 0 | AX26: =SUM(AX19:AX25) -> 2880000 | AZ26: =SUM(AZ22:AZ25) -> 0 | BA26: =SUM(BA22:BA25) -> 0 | BB26: =SUM(BB19:BB25) -> 2880000 | BE26: =SUM(BE19:BE25) -> 0 | BH26: 支出<C> | BI26: =SUM(BI12:BI24) -> 0 | BJ26: =SUM(BJ12:BJ24) -> 0 | BK26: 0 | BL26: 2880000 | BM26: =BK26-BL26 -> -2880000
C27: 収入ー費用 | H27: =I21-H26 -> 545423 | J27: =F27+H27 -> 545423 | K27: =G27+I27 -> 0 | L27: =M21-L26 -> 0 | N27: =J27+L27 -> 545423 | O27: =K27+M27 -> 0 | P27: =Q21-P26 -> 0 | R27: =N27+P27 -> 545423 | S27: =O27+Q27 -> 0 | T27: =U21-T26 -> 0 | V27: =R27+T27 -> 545423 | W27: =S27+U27 -> 0 | X27: =Y21-X26 -> 0 | Z27: =V27+X27 -> 545423 | AA27: =W27+Y27 -> 0 | AB27: =AC21-AB26 -> 0 | AD27: =Z27+AB27 -> 545423 | AE27: =AA27+AC27 -> 0 | AF27: =AG21-AF26 -> 0 | AH27: =AD27+AF27 -> 545423 | AI27: =AE27+AG27 -> 0 | AJ27: =AK21-AJ26 -> 0 | AL27: =AH27+AJ27 -> 545423 | AM27: =AI27+AK27 -> 0 | AN27: =AO21-AN26 -> 0 | AP27: =AL27+AN27 -> 545423 | AQ27: =AM27+AO27 -> 0 | AR27: =AS21-AR26 -> 0 | AT27: =AP27+AR27 -> 545423 | AU27: =AQ27+AS27 -> 0 | AV27: =AW21-AV26 -> 0 | AX27: =AT27+AV27 -> 545423 | AY27: =AU27+AW27 -> 0 | AZ27: =BA21-AZ26 -> 0 | BB27: =AX27+AZ27 -> 545423 | BC27: =AY27+BA27 -> 0 | BE27: =BF17-BE26 -> 0 | BH27: 収益 | BI27: =BI17-BI26 -> 0 | BJ27: =BJ17-BJ26 -> 0 | BK27: 0 | BL27: -2880000 | BM27: 2880000
F29: =F4 -> 2021-03-31 | H29: =H4 -> 2021-04-01 | J29: =J4 -> 2022-03-31 | L29: =L4 ->  | N29: =N4 ->  | P29: =P4 ->  | R29: =R4 ->  | T29: =T4 ->  | V29: =V4 ->  | X29: =X4 ->  | Z29: =Z4 ->  | AB29: =AB4 ->  | AD29: =AD4 ->  | AF29: =AF4 ->  | AH29: =AH4 ->  | AJ29: =AJ4 ->  | AL29: =AL4 ->  | AN29: =AN4 ->  | AP29: =AP4 ->  | AR29: =AR4 ->  | AT29: =AT4 ->  | AV29: =AV4 ->  | AX29: =AX4 ->  | AZ29: =AZ4 ->  | BB29: =BB4 ->  | BE29: =BE4 -> 2021 | BF29: 年度予算
F30: 繰越残高 | H30: 発生 | J30: 残高 | L30: 発生 | N30: 残高 | P30: 発生 | R30: 残高 | T30: 発生 | V30: 残高 | X30: 発生 | Z30: 残高 | AB30: 発生 | AD30: 残高 | AF30: 発生 | AH30: 残高 | AJ30: 発生 | AL30: 残高 | AN30: 発生 | AP30: 残高 | AR30: 発生 | AT30: 残高 | AV30: 発生 | AX30: 残高 | AZ30: 発生 | BB30: 残高
D31: 細分類 | F31: 借方 | G31: 貸方 | H31: 借方 | I31: 貸方 | J31: 借方 | K31: 貸方 | L31: 借方 | M31: 貸方 | N31: 借方 | O31: 貸方 | P31: 借方 | Q31: 貸方 | R31: 借方 | S31: 貸方 | T31: 借方 | U31: 貸方 | V31: 借方 | W31: 貸方 | X31: 借方 | Y31: 貸方 | Z31: 借方 | AA31: 貸方 | AB31: 借方 | AC31: 貸方 | AD31: 借方 | AE31: 貸方 | AF31: 借方 | AG31: 貸方 | AH31: 借方 | AI31: 貸方 | AJ31: 借方 | AK31: 貸方 | AL31: 借方 | AM31: 貸方 | AN31: 借方 | AO31: 貸方 | AP31: 借方 | AQ31: 貸方 | AR31: 借方 | AS31: 貸方 | AT31: 借方 | AU31: 貸方 | AV31: 借方 | AW31: 貸方 | AX31: 借方 | AY31: 貸方 | AZ31: 借方 | BA31: 貸方 | BB31: 借方 | BC31: 貸方 | BE31: 借方 | BF31: 貸方
D32: =D7 -> 現金 | F32: =F7 -> 0 | G32: 0 | H32: 0 | I32: 0 | J32: 0 | K32: 0 | L32: =L7 -> 0 | M32: 0 | N32: 0 | O32: 0 | P32: =P7 -> 0 | Q32: 0 | R32: 0 | S32: 0 | T32: 0 | U32: 0 | V32: 0 | W32: 0 | X32: 0 | Y32: 0 | Z32: 0 | AA32: 0 | AB32: 0 | AC32: 0 | AD32: 0 | AE32: 0 | AF32: 0 | AG32: 0 | AH32: 0 | AI32: 0 | AJ32: 0 | AK32: 0 | AL32: 0 | AM32: 0 | AN32: 0 | AO32: 0 | AP32: 0 | AQ32: 0 | AR32: 0 | AS32: 0 | AT32: 0 | AU32: 0 | AV32: 0 | AW32: 0 | AX32: 0 | AY32: 0 | AZ32: 0 | BA32: 0 | BB32: 0 | BC32: 0 | BE32: =BE7 -> 0 | BF32: =BF7 -> 0
D36: =D8 -> 普通預金(準備金移動前） | F36: =F8 -> 0 | G36: 0 | H36: 3425423 | I36: 3425423 | J36: 0 | K36: 0 | L36: =L8 -> 0 | M36: 0 | N36: 0 | O36: 0 | P36: =P8 -> 0 | Q36: 0 | R36: 0 | S36: 0 | T36: 0 | U36: 0 | V36: 0 | W36: 0 | X36: 0 | Y36: 0 | Z36: 0 | AA36: 0 | AB36: 0 | AC36: 0 | AD36: 0 | AE36: 0 | AF36: 0 | AG36: 0 | AH36: 0 | AI36: 0 | AJ36: 0 | AK36: 0 | AL36: 0 | AM36: 0 | AN36: 0 | AO36: 0 | AP36: 0 | AQ36: 0 | AR36: 0 | AS36: 0 | AT36: 0 | AU36: 0 | AV36: 0 | AW36: 0 | AX36: 0 | AY36: 0 | AZ36: 0 | BA36: 0 | BB36: 0 | BC36: 0 | BE36: =BE8 -> 0 | BF36: =BF8 -> 0
J37: =F37+H37-I37 -> 0 | N37: =J37+L37-M37 -> 0 | R37: =N37+P37-Q37 -> 0 | V37: =R37+T37-U37 -> 0 | Z37: =V37+X37-Y37 -> 0 | AD37: =Z37+AB37-AC37 -> 0 | AH37: =AD37+AF37-AG37 -> 0 | AL37: =AH37+AJ37-AK37 -> 0 | AP37: =AL37+AN37-AO37 -> 0 | AT37: =AP37+AR37-AS37 -> 0 | AX37: =AT37+AV37-AW37 -> 0 | BB37: =AX37+AZ37-BA37 -> 0
J38: =F38+H38-I38 -> 0 | N38: =J38+L38-M38 -> 0 | R38: =N38+P38-Q38 -> 0 | V38: =R38+T38-U38 -> 0 | Z38: =V38+X38-Y38 -> 0 | AD38: =Z38+AB38-AC38 -> 0 | AH38: =AD38+AF38-AG38 -> 0 | AL38: =AH38+AJ38-AK38 -> 0 | AP38: =AL38+AN38-AO38 -> 0 | AT38: =AP38+AR38-AS38 -> 0 | AX38: =AT38+AV38-AW38 -> 0 | BB38: =AX38+AZ38-BA38 -> 0
D40: =D9 -> A準備金 | F40: =F9 -> 6300000 | G40: 0 | H40: 2125423 | I40: 7800000 | J40: 625423 | K40: 0 | L40: =L9 -> 0 | M40: 0 | N40: 625423 | O40: 0 | P40: =P9 -> 0 | Q40: 0 | R40: 625423 | S40: 0 | T40: 0 | U40: 0 | V40: 625423 | W40: 0 | X40: 0 | Y40: 0 | Z40: 625423 | AA40: 0 | AB40: 0 | AC40: 0 | AD40: 625423 | AE40: 0 | AF40: 0 | AG40: 0 | AH40: 625423 | AI40: 0 | AJ40: 0 | AK40: 0 | AL40: 625423 | AM40: 0 | AN40: 0 | AO40: 0 | AP40: 625423 | AQ40: 0 | AR40: 0 | AS40: 0 | AT40: 625423 | AU40: 0 | AV40: 0 | AW40: 0 | AX40: 625423 | AY40: 0 | AZ40: 0 | BA40: 0 | BB40: 625423 | BC40: 0 | BE40: 0 | BF40: 0
D44: =D10 -> B準備金 | F44: =F10 -> 0 | G44: 0 | H44: 7200000 | I44: 0 | J44: 7200000 | K44: 0 | L44: =L10 -> 0 | M44: 0 | N44: 7200000 | O44: 0 | P44: =P10 -> 0 | Q44: 0 | R44: 7200000 | S44: 0 | T44: 0 | U44: 0 | V44: 7200000 | W44: 0 | X44: 0 | Y44: 0 | Z44: 7200000 | AA44: 0 | AB44: 0 | AC44: 0 | AD44: 7200000 | AE44: 0 | AF44: 0 | AG44: 0 | AH44: 7200000 | AI44: 0 | AJ44: 0 | AK44: 0 | AL44: 7200000 | AM44: 0 | AN44: 0 | AO44: 0 | AP44: 7200000 | AQ44: 0 | AR44: 0 | AS44: 0 | AT44: 7200000 | AU44: 0 | AV44: 0 | AW44: 0 | AX44: 7200000 | AY44: 0 | AZ44: 0 | BA44: 0 | BB44: 7200000 | BC44: 0 | BE44: =BE10 -> 0 | BF44: =BF10 -> 0
D48: =D11 -> C準備金 | F48: =F11 -> 0 | G48: =G11 -> 0 | H48: =H11 -> 1300000 | I48: 600000 | J48: 700000 | K48: 0 | L48: =L11 -> 0 | M48: 0 | N48: 700000 | O48: 0 | P48: =P11 -> 0 | Q48: 0 | R48: 700000 | S48: 0 | T48: 0 | U48: 0 | V48: 700000 | W48: 0 | X48: 0 | Y48: 0 | Z48: 700000 | AA48: 0 | AB48: 0 | AC48: 0 | AD48: 700000 | AE48: 0 | AF48: 0 | AG48: 0 | AH48: 700000 | AI48: 0 | AJ48: 0 | AK48: 0 | AL48: 700000 | AM48: 0 | AN48: 0 | AO48: 0 | AP48: 700000 | AQ48: 0 | AR48: 0 | AS48: 0 | AT48: 700000 | AU48: 0 | AV48: 0 | AW48: 0 | AX48: 700000 | AY48: 0 | AZ48: 0 | BA48: 0 | BB48: 700000 | BC48: 0 | BE48: =BE11 -> 0 | BF48: =BF11 -> 0
D52: =D12 -> 固定資産 | F52: =F12 -> 61300000 | G52: =G12 -> 0 | H52: 0 | I52: 1680000 | J52: 59620000 | K52: 0 | L52: =L12 -> 0 | M52: 0 | N52: 59620000 | O52: 0 | P52: =P12 -> 0 | Q52: 0 | R52: 59620000 | S52: 0 | T52: 0 | U52: 0 | V52: 59620000 | W52: 0 | X52: 0 | Y52: 0 | Z52: 59620000 | AA52: 0 | AB52: 0 | AC52: 0 | AD52: 59620000 | AE52: 0 | AF52: 0 | AG52: 0 | AH52: 59620000 | AI52: 0 | AJ52: 0 | AK52: 0 | AL52: 59620000 | AM52: 0 | AN52: 0 | AO52: 0 | AP52: 59620000 | AQ52: 0 | AR52: 0 | AS52: 0 | AT52: 59620000 | AU52: 0 | AV52: 0 | AW52: 0 | AX52: 59620000 | AY52: 0 | AZ52: 0 | BA52: 0 | BB52: 59620000 | BC52: 0 | BE52: =BE12 -> 0 | BF52: =BF12 -> 0
D56: =D13 -> その他資産 | F56: =F13 -> 0 | G56: 0 | H56: 0 | I56: 0 | J56: 0 | K56: 0 | L56: =L13 -> 0 | M56: 0 | N56: 0 | O56: 0 | P56: =P13 -> 0 | Q56: 0 | R56: 0 | S56: 0 | T56: 0 | U56: 0 | V56: 0 | W56: 0 | X56: 0 | Y56: 0 | Z56: 0 | AA56: 0 | AB56: 0 | AC56: 0 | AD56: 0 | AE56: 0 | AF56: 0 | AG56: 0 | AH56: 0 | AI56: 0 | AJ56: 0 | AK56: 0 | AL56: 0 | AM56: 0 | AN56: 0 | AO56: 0 | AP56: 0 | AQ56: 0 | AR56: 0 | AS56: 0 | AT56: 0 | AU56: 0 | AV56: 0 | AW56: 0 | AX56: 0 | AY56: 0 | AZ56: 0 | BA56: 0 | BB56: 0 | BC56: 0 | BE56: =BE13 -> 0 | BF56: =BF13 -> 0
D60: =D15 -> 銀行借入金 | F60: =F15 -> 0 | G60: =G15 -> 0 | H60: 0 | I60: 0 | J60: 0 | K60: 0 | L60: =L15 -> 0 | M60: 0 | N60: 0 | O60: 0 | P60: =P15 -> 0 | Q60: 0 | R60: 0 | S60: 0 | T60: 0 | U60: 0 | V60: 0 | W60: 0 | X60: 0 | Y60: 0 | Z60: 0 | AA60: 0 | AB60: 0 | AC60: 0 | AD60: 0 | AE60: 0 | AF60: 0 | AG60: 0 | AH60: 0 | AI60: 0 | AJ60: 0 | AK60: 0 | AL60: 0 | AM60: 0 | AN60: 0 | AO60: 0 | AP60: 0 | AQ60: 0 | AR60: 0 | AS60: 0 | AT60: 0 | AU60: 0 | AV60: 0 | AW60: 0 | AX60: 0 | AY60: 0 | AZ60: 0 | BA60: 0 | BB60: 0 | BC60: 0 | BE60: =BE15 -> 0 | BF60: =BF15 -> 0
D64: =D16 -> その他負債 | F64: =F16 -> 0 | G64: =G16 -> 0 | H64: 0 | I64: 0 | J64: 0 | K64: 0 | L64: =L16 -> 0 | M64: 0 | N64: 0 | O64: 0 | P64: =P16 -> 0 | Q64: 0 | R64: 0 | S64: 0 | T64: 0 | U64: 0 | V64: 0 | W64: 0 | X64: 0 | Y64: 0 | Z64: 0 | AA64: 0 | AB64: 0 | AC64: 0 | AD64: 0 | AE64: 0 | AF64: 0 | AG64: 0 | AH64: 0 | AI64: 0 | AJ64: 0 | AK64: 0 | AL64: 0 | AM64: 0 | AN64: 0 | AO64: 0 | AP64: 0 | AQ64: 0 | AR64: 0 | AS64: 0 | AT64: 0 | AU64: 0 | AV64: 0 | AW64: 0 | AX64: 0 | AY64: 0 | AZ64: 0 | BA64: 0 | BB64: 0 | BC64: 0 | BE64: =BE16 -> 0 | BF64: =BF16 -> 0
D68: =D19 -> 自治会一般会計 | F68: =F19 -> 0 | G68: =G19 -> 0 | H68: 0 | I68: 3425396 | J68: 0 | K68: 3425396 | L68: =L19 -> 0 | M68: 0 | N68: 0 | O68: 3425396 | P68: =P19 -> 0 | Q68: 0 | R68: 0 | S68: 3425396 | T68: 0 | U68: 0 | V68: 0 | W68: 3425396 | X68: 0 | Y68: 0 | Z68: 0 | AA68: 3425396 | AB68: 0 | AC68: 0 | AD68: 0 | AE68: 3425396 | AF68: 0 | AG68: 0 | AH68: 0 | AI68: 3425396 | AJ68: 0 | AK68: 0 | AL68: 0 | AM68: 3425396 | AN68: 0 | AO68: 0 | AP68: 0 | AQ68: 3425396 | AR68: 0 | AS68: 0 | AT68: 0 | AU68: 3425396 | AV68: 0 | AW68: 0 | AX68: 0 | AY68: 3425396 | AZ68: 0 | BA68: 0 | BB68: 0 | BC68: 3425396 | BE68: =BE19 -> 0 | BF68: =BF19 -> 0
D72: =D20 -> その他収入 | F72: =F20 -> 0 | G72: =G20 -> 0 | H72: 0 | I72: 27 | J72: 0 | K72: 27 | L72: =L20 -> 0 | M72: 0 | N72: 0 | O72: 27 | P72: =P20 -> 0 | Q72: 0 | R72: 0 | S72: 27 | T72: 0 | U72: 0 | V72: 0 | W72: 27 | X72: 0 | Y72: 0 | Z72: 0 | AA72: 27 | AB72: 0 | AC72: 0 | AD72: 0 | AE72: 27 | AF72: 0 | AG72: 0 | AH72: 0 | AI72: 27 | AJ72: 0 | AK72: 0 | AL72: 0 | AM72: 27 | AN72: 0 | AO72: 0 | AP72: 0 | AQ72: 27 | AR72: 0 | AS72: 0 | AT72: 0 | AU72: 27 | AV72: 0 | AW72: 0 | AX72: 0 | AY72: 27 | AZ72: 0 | BA72: 0 | BB72: 0 | BC72: 27 | BE72: =BE20 -> 0 | BF72: 0
E73: 普通預金利子
D76: =D22 -> 修繕費 | F76: =F22 -> 0 | G76: =G22 -> 0 | H76: 600000 | I76: 0 | J76: 600000 | K76: 0 | L76: =L22 -> 0 | M76: 0 | N76: 600000 | O76: 0 | P76: =P22 -> 0 | Q76: 0 | R76: 600000 | S76: 0 | T76: 0 | U76: 0 | V76: 600000 | W76: 0 | X76: 0 | Y76: 0 | Z76: 600000 | AA76: 0 | AB76: 0 | AC76: 0 | AD76: 600000 | AE76: 0 | AF76: 0 | AG76: 0 | AH76: 600000 | AI76: 0 | AJ76: 0 | AK76: 0 | AL76: 600000 | AM76: 0 | AN76: 0 | AO76: 0 | AP76: 600000 | AQ76: 0 | AR76: 0 | AS76: 0 | AT76: 600000 | AU76: 0 | AV76: 0 | AW76: 0 | AX76: 600000 | AY76: 0 | AZ76: 0 | BA76: 0 | BB76: 600000 | BC76: 0 | BE76: =BE22 -> 0 | BF76: 0
E77: 建物
D80: =D23 -> 減価償却費 | F80: =F23 -> 0 | G80: =G23 -> 0 | H80: 1680000 | I80: 0 | J80: 1680000 | K80: 0 | L80: =L23 -> 0 | M80: 0 | N80: 1680000 | O80: 0 | P80: =P23 -> 0 | Q80: 0 | R80: 1680000 | S80: 0 | T80: 0 | U80: 0 | V80: 1680000 | W80: 0 | X80: 0 | Y80: 0 | Z80: 1680000 | AA80: 0 | AB80: 0 | AC80: 0 | AD80: 1680000 | AE80: 0 | AF80: 0 | AG80: 0 | AH80: 1680000 | AI80: 0 | AJ80: 0 | AK80: 0 | AL80: 1680000 | AM80: 0 | AN80: 0 | AO80: 0 | AP80: 1680000 | AQ80: 0 | AR80: 0 | AS80: 0 | AT80: 1680000 | AU80: 0 | AV80: 0 | AW80: 0 | AX80: 1680000 | AY80: 0 | AZ80: 0 | BA80: 0 | BB80: 1680000 | BC80: 0 | BE80: =BE23 -> 0 | BF80: 0
E81: 建物
D84: =D24 -> その他費用1 | F84: =F24 -> 0 | G84: =G24 -> 0 | H84: 600000 | I84: 0 | J84: 600000 | K84: 0 | L84: =L24 -> 0 | M84: 0 | N84: 600000 | O84: 0 | P84: =P24 -> 0 | Q84: 0 | R84: 600000 | S84: 0 | T84: 0 | U84: 0 | V84: 600000 | W84: 0 | X84: 0 | Y84: 0 | Z84: 600000 | AA84: 0 | AB84: 0 | AC84: 0 | AD84: 600000 | AE84: 0 | AF84: 0 | AG84: 0 | AH84: 600000 | AI84: 0 | AJ84: 0 | AK84: 0 | AL84: 600000 | AM84: 0 | AN84: 0 | AO84: 0 | AP84: 600000 | AQ84: 0 | AR84: 0 | AS84: 0 | AT84: 600000 | AU84: 0 | AV84: 0 | AW84: 0 | AX84: 600000 | AY84: 0 | AZ84: 0 | BA84: 0 | BB84: 600000 | BC84: 0 | BE84: =BE24 -> 0 | BF84: 0
E85: AAA負担金
D88: =D25 -> その他費用2 | F88: =F25 -> 0 | G88: =G25 -> 0 | H88: 0 | I88: 0 | J88: 0 | K88: 0 | L88: =L25 -> 0 | M88: 0 | N88: 0 | O88: 0 | P88: =P25 -> 0 | Q88: 0 | R88: 0 | S88: 0 | T88: 0 | U88: 0 | V88: 0 | W88: 0 | X88: 0 | Y88: 0 | Z88: 0 | AA88: 0 | AB88: 0 | AC88: 0 | AD88: 0 | AE88: 0 | AF88: 0 | AG88: 0 | AH88: 0 | AI88: 0 | AJ88: 0 | AK88: 0 | AL88: 0 | AM88: 0 | AN88: 0 | AO88: 0 | AP88: 0 | AQ88: 0 | AR88: 0 | AS88: 0 | AT88: 0 | AU88: 0 | AV88: 0 | AW88: 0 | AX88: 0 | AY88: 0 | AZ88: 0 | BA88: 0 | BB88: 0 | BC88: 0 | BE88: 0 | BF88: 0

Sheet 科目細分類表
A1: この３列は触らないでください。 | D1: 科目細分類表 | G1: 下の操作を行うと、科目名及び科目グループ名（セル内で完全一致した）を置き換えます(処理としては、置き換え前に、時刻付きのバックアップEを作成します）。
G2: 文字列 | H2: 現金 | I2: を | J2: 現金 | K2: へ置き換えます。→
E3: 資産４項目を固定（借方残） | I3: 負債2項目を固定（貸方残） | K3: 収入3項目を固定（貸方残） | N3: 費用6項目を固定
B4: 逆引き | D4: 科目グループ→ | E4: 特会資産 | F4: 特会資産 | G4: 特会資産 | H4: 特会資産 | I4: 特会資産 | J4: 特会資産 | K4: 特会資産 | L4: 特会負債 | M4: 特会負債 | N4: 特会収入 | O4: 特会収入 | P4: 特会費用 | Q4: 特会費用 | R4: 特会費用 | S4: 特会費用
A5: =E4 -> 特会資産 | B5: =科目細分類[[#Headers],[現金]] -> 現金 | C5: =E4 -> 特会資産 | D5: 科目名→ 細分類↓ | E5: 現金 | F5: 普通預金(準備金移動前） | G5: A準備金 | H5: B準備金 | I5: C準備金 | J5: 固定資産 | K5: その他資産 | L5: 銀行借入金 | M5: その他負債 | N5: 自治会一般会計 | O5: その他収入 | P5: 修繕費 | Q5: 減価償却費 | R5: その他費用1 | S5: その他費用2
A6: =F4 -> 特会資産 | B6: =科目細分類[[#Headers],[普通預金(準備金移動前）]] -> 普通預金(準備金移動前） | C6: =F4 -> 特会資産 | D6: a | E6: - | F6: - | G6: - | H6: - | I6: - | J6: 建物 | K6: - | L6: - | M6: - | N6: - | O6: 普通預金利子 | P6: 建物 | Q6: 建物 | R6: AAA負担金
A7: =G4 -> 特会資産 | B7: =科目細分類[[#Headers],[A準備金]] -> A準備金 | C7: =G4 -> 特会資産 | D7: b | J7: -
A8: =H4 -> 特会資産 | B8: =科目細分類[[#Headers],[B準備金]] -> B準備金 | C8: =H4 -> 特会資産 | D8: c | J8: -
A9: =I4 -> 特会資産 | B9: =科目細分類[[#Headers],[C準備金]] -> C準備金 | C9: =I4 -> 特会資産 | D9: d | E9: - | J9: -
A10: =J4 -> 特会資産 | B10: =科目細分類[[#Headers],[固定資産]] -> 固定資産 | C10: =J4 -> 特会資産 | D10: e | E10: - | I10: - | J10: -
A11: =K4 -> 特会資産 | B11: =科目細分類[[#Headers],[その他資産]] -> その他資産 | C11: =K4 -> 特会資産 | D11: f | E11: - | G11: - | I11: - | J11: -
A12: =L4 -> 特会負債 | B12: =科目細分類[[#Headers],[銀行借入金]] -> 銀行借入金 | C12: =L4 -> 特会負債 | D12: g | E12: - | G12: - | I12: - | J12: -
A13: =M4 -> 特会負債 | B13: =科目細分類[[#Headers],[その他負債]] -> その他負債 | C13: =M4 -> 特会負債 | D13: h | E13: - | G13: - | I13: - | J13: -
A14: =N4 -> 特会収入 | B14: =科目細分類[[#Headers],[自治会一般会計]] -> 自治会一般会計 | C14: =N4 -> 特会収入 | D14: i | E14: - | F14: - | G14: - | I14: - | J14: -
A15: =O4 -> 特会収入 | B15: =科目細分類[[#Headers],[その他収入 ]] -> その他収入 | C15: =O4 -> 特会収入 | D15: j | E15: - | F15: - | G15: - | H15: - | I15: - | J15: -
A16: =P4 -> 特会費用 | B16: =科目細分類[[#Headers],[修繕費]] -> 修繕費 | C16: =P4 -> 特会費用 | D16: k | E16: - | F16: - | G16: - | H16: - | I16: - | J16: -
A17: =Q4 -> 特会費用 | B17: =科目細分類[[#Headers],[減価償却費]] -> 減価償却費 | C17: =Q4 -> 特会費用 | D17: l | E17: - | F17: - | G17: - | H17: - | I17: - | J17: -
A18: =R4 -> 特会費用 | B18: =科目細分類[[#Headers],[その他費用1]] -> その他費用1 | C18: =R4 -> 特会費用 | D18: m | E18: - | F18: - | G18: - | H18: - | I18: - | J18: -
A19: =S4 -> 特会費用 | B19: =科目細分類[[#Headers],[その他費用2]] -> その他費用2 | C19: =S4 -> 特会費用 | D19: n | E19: - | F19: - | G19: - | H19: - | I19: - | J19: -
D20: o | E20: - | F20: - | G20: - | H20: - | I20: - | J20: -
D21: p | E21: - | F21: - | G21: - | H21: - | I21: - | J21: -
D22: q | E22: - | F22: - | G22: - | H22: - | I22: - | J22: -
D23: r | E23: - | F23: - | G23: - | H23: - | I23: - | J23: -

Sheet 現金照合表
B2: =説明!C24 -> A自治会_特別会計
B3: 現 金 照 合 表
G4: 会計 | J4: ㊞
B5: 日付 | C5: 2021-09-30
B7: 金種 | D7: 枚数 | E7: 金額 | H7: 帳簿残高 | J7: 円
B8: 10000 | C8: 円 | E8: =B8*D8 -> 0 | F8: 円 | H8: 実際有高 | I8: =E19 -> 0 | J8: 円
B9: 5000 | C9: 円 | E9: =B9*D9 -> 0 | F9: 円 | H9: 現金過不足 | I9: =I8-I7 -> 0 | J9: 円
B10: 2000 | C10: 円 | E10: 0 | F10: 円
B11: 1000 | C11: 円 | E11: 0 | F11: 円
B12: 500 | C12: 円 | E12: 0 | F12: 円
B13: 100 | C13: 円 | E13: 0 | F13: 円
B14: 50 | C14: 円 | E14: 0 | F14: 円
B15: 10 | C15: 円 | E15: 0 | F15: 円
B16: 5 | C16: 円 | E16: 0 | F16: 円
B17: 1 | C17: 円 | E17: 0 | F17: 円
B18: 商品券 | F18: 円
B19: 現金残高 | E19: =SUM(E8:E18) -> 0 | F19: 円

Sheet 手書き領収書フォーム
B3: 領収証 | E3: =説明!C24 -> A自治会_特別会計 | G3: 様
E5: 150000 | G5: 円也
B7: 令和3年 月 日 上記正に領収いたしました。
G9: ㊞
B12: 領収証 | E12: =E3 -> A自治会_特別会計 | G12: 様
E14: 100000 | G14: 円也
B16: 令和3年 月 日 上記正に領収いたしました。
G18: ㊞
B21: 領収証 | E21: =E3 -> A自治会_特別会計 | G21: 様
G23: 円也
B25: 令和3年 月 日 上記正に領収いたしました。
G27: ㊞
